Workbook

Sheet Index
A1: Number | B1: Essay's Title | C1: Magazine Reference | D1: Folder | E1: File Name | F1: Essay [Adobe Acrobat] | G1: Reference
A2: 1 | C2: Quaternary Science Reviews, Volume 20, 2001, Pages 1031-1039 | D2: C:\Essays\Geo_Dating\Dating\Negative_Ages\ | E2: =("Negative_Ages_0" &A2) -> Negative_Ages_01 | F2: =(D2 & E2 & ".pdf") -> C:\Essays\Geo_Dating\Dating\Negative_Ages\Negative_Ages_01.pdf
A3: 2 | D3: C:\Essays\Geo_Dating\Dating\Negative_Ages\ | E3: =("Negative_Ages_0" &A3) -> Negative_Ages_02 | F3: =(D3 & E3 & ".pdf") -> C:\Essays\Geo_Dating\Dating\Negative_Ages\Negative_Ages_02.pdf
A4: 3 | B4: Ion Microprobe U-Pb Dating | C4: Journal of Volcanology and Geothermal Research, Volume 117, 2002, Pages 285-296 | D4: C:\Essays\Geo_Dating\Dating\Negative_Ages\ | E4: Negative_Ages_03 | F4: C:\Essays\Geo_Dating\Dating\Negative_Ages\Negative_Ages_03.pdf | G4: =(B4 & ", " & C4) -> Ion Microprobe U-Pb Dating , Journal of Volcanology and Geothermal Research, Volume 117, 2002, Pages 285-296
A5: 4 | B5: The Long Valley rhyolitic | C5: Geochimica et Cosmochimica Acta, 1998, Volume 62, Number 21/22, Pages 3561-3574 | D5: C:\Essays\Geo_Dating\Dating\Negative_Ages\ | E5: Negative_Ages_04 | F5: C:\Essays\Geo_Dating\Dating\Negative_Ages\Negative_Ages_04.pdf | G5: =(B5 & ", " & C5) -> The Long Valley rhyolitic , Geochimica et Cosmochimica Acta, 1998, Volume 62, Number 21/22, Pages 3561-3574
A6: 5 | D6: C:\Essays\Geo_Dating\Dating\Negative_Ages\ | E6: Negative_Ages_05 | F6: C:\Essays\Geo_Dating\Dating\Negative_Ages\Negative_Ages_05.pdf
A7: 6 | B7: Rn-Generated 206Pb | C7: Mineralogy and Petrology, 1999, Volume 66, Pages 171-191 | D7: C:\Essays\Geo_Dating\Dating\Negative_Ages\ | E7: Negative_Ages_06 | F7: C:\Essays\Geo_Dating\Dating\Negative_Ages\Negative_Ages_06.pdf | G7: Rn-Generated 206Pb , Mineralogy and Petrology, 1999, Volume 66, Pages 171-191
A8: 7 | B8: 40Ar/39 Ar Age of a Tholeiitic Basalt | C8: Quaternary Research, Volume 68, 2007, Pages 96-110 | D8: C:\Essays\Geo_Dating\Dating\Negative_Ages\ | E8: Negative_Ages_07 | F8: C:\Essays\Geo_Dating\Dating\Negative_Ages\Negative_Ages_07.pdf | G8: 40Ar/39 Ar Age of a Tholeiitic Basalt , Quaternary Research, Volume 68, 2007, Pages 96-110
A9: 8 | B9: Isotopic Systematics of Ultramafic Xenoliths | C9: Chemical Geology, Volume 248, 2008, Pages 40-61 | D9: C:\Essays\Geo_Dating\Dating\Negative_Ages\ | E9: Negative_Ages_08 | F9: C:\Essays\Geo_Dating\Dating\Negative_Ages\Negative_Ages_08.pdf | G9: Isotopic Systematics of Ultramafic Xenoliths , Chemical Geology, Volume 248, 2008, Pages 40-61
A10: 9 | D10: C:\Essays\Geo_Dating\Dating\Negative_Ages\ | E10: Negative_Ages_09 | F10: C:\Essays\Geo_Dating\Dating\Negative_Ages\Negative_Ages_09.pdf
A11: 10 | B11: Systematics of Korean Spinel Peridotites | C11: Lithos, Volume 154, 2012, Pages 263–276 | D11: C:\Essays\Geo_Dating\Dating\Negative_Ages\ | E11: =("Negative_Ages_" &A11) -> Negative_Ages_10 | F11: C:\Essays\Geo_Dating\Dating\Negative_Ages\Negative_Ages_10.pdf | G11: Systematics of Korean Spinel Peridotites, Lithos, Volume 154, 2012, Pages 263–276
A12: 11 | D12: C:\Essays\Geo_Dating\Dating\Negative_Ages\ | E12: =("Negative_Ages_" &A12) -> Negative_Ages_11 | F12: C:\Essays\Geo_Dating\Dating\Negative_Ages\Negative_Ages_11.pdf
A13: 12 | D13: C:\Essays\Geo_Dating\Dating\Negative_Ages\ | E13: Negative_Ages_12 | F13: C:\Essays\Geo_Dating\Dating\Negative_Ages\Negative_Ages_12.pdf
A14: 13 | D14: C:\Essays\Geo_Dating\Dating\Negative_Ages\ | E14: Negative_Ages_13 | F14: C:\Essays\Geo_Dating\Dating\Negative_Ages\Negative_Ages_13.pdf
A15: 14 | D15: C:\Essays\Geo_Dating\Dating\Negative_Ages\ | E15: Negative_Ages_14 | F15: C:\Essays\Geo_Dating\Dating\Negative_Ages\Negative_Ages_14.pdf
A16: 15 | B16: Mobility of Rare Earth Elements | C16: Resource Geology, Volume 61, Number 2, Pages 140-158 | D16: C:\Essays\Geo_Dating\Dating\Negative_Ages\ | E16: Negative_Ages_15 | F16: C:\Essays\Geo_Dating\Dating\Negative_Ages\Negative_Ages_15.pdf | G16: Mobility of Rare Earth Elements , Resource Geology, Volume 61, Number 2, Pages 140-158
A17: 16 | D17: C:\Essays\Geo_Dating\Dating\Negative_Ages\ | E17: Negative_Ages_16 | F17: C:\Essays\Geo_Dating\Dating\Negative_Ages\Negative_Ages_16.pdf
A18: 17 | D18: C:\Essays\Geo_Dating\Dating\Negative_Ages\ | E18: Negative_Ages_17 | F18: C:\Essays\Geo_Dating\Dating\Negative_Ages\Negative_Ages_17.pdf
A19: 18 | B19: Strontium Geochemistry of the Australian Alps | C19: Chemical Geology, Volume 284, 2011, Pages 105-126 | D19: C:\Essays\Geo_Dating\Dating\Negative_Ages\ | E19: Negative_Ages_18 | F19: C:\Essays\Geo_Dating\Dating\Negative_Ages\Negative_Ages_18.pdf | G19: Strontium Geochemistry of the Australian Alps, Chemical Geology, Volume 284, 2011, Pages 105-126
A20: 19 | B20: Timing of Precambrian Melt Depletion | C20: Lithos, Volume 77, 2004, Pages 453-472 | D20: C:\Essays\Geo_Dating\Dating\Negative_Ages\ | E20: Negative_Ages_19 | F20: C:\Essays\Geo_Dating\Dating\Negative_Ages\Negative_Ages_19.pdf | G20: Timing of Precambrian Melt Depletion , Lithos, Volume 77, 2004, Pages 453-472
A21: 20 | B21: Re-Os, Sm-Nd, and Rb-Sr Isotope Evidence | C21: Geochemica et Cosmochimica Acta, 1995, Volume 59, Number 5, Pages 959-977 | D21: C:\Essays\Geo_Dating\Dating\Negative_Ages\ | E21: Negative_Ages_20 | F21: C:\Essays\Geo_Dating\Dating\Negative_Ages\Negative_Ages_20.pdf | G21: Re-Os, Sm-Nd, and Rb-Sr Isotope Evidence , Geochemica et Cosmochimica Acta, 1995, Volume 59, Number 5, Pages 959-977
A22: 21 | B22: Mantle Geochemistry And Geochronology | C22: Lithos, Volume 82, 2005, Pages 249–272 | D22: C:\Essays\Geo_Dating\Dating\Negative_Ages\ | E22: Negative_Ages_21 | F22: C:\Essays\Geo_Dating\Dating\Negative_Ages\Negative_Ages_21.pdf
A23: 22 | D23: C:\Essays\Geo_Dating\Dating\Negative_Ages\ | E23: Negative_Ages_22 | F23: C:\Essays\Geo_Dating\Dating\Negative_Ages\Negative_Ages_22.pdf
A24: 23 | D24: C:\Essays\Geo_Dating\Dating\Negative_Ages\ | E24: Negative_Ages_23 | F24: C:\Essays\Geo_Dating\Dating\Negative_Ages\Negative_Ages_23.pdf
A25: 24 | D25: C:\Essays\Geo_Dating\Dating\Negative_Ages\ | E25: Negative_Ages_24 | F25: C:\Essays\Geo_Dating\Dating\Negative_Ages\Negative_Ages_24.pdf
A26: 25 | D26: C:\Essays\Geo_Dating\Dating\Negative_Ages\ | E26: Negative_Ages_25 | F26: C:\Essays\Geo_Dating\Dating\Negative_Ages\Negative_Ages_25.pdf
A27: 26 | D27: C:\Essays\Geo_Dating\Dating\Negative_Ages\ | E27: Negative_Ages_26 | F27: C:\Essays\Geo_Dating\Dating\Negative_Ages\Negative_Ages_26.pdf
A28: 27 | D28: C:\Essays\Geo_Dating\Dating\Negative_Ages\ | E28: Negative_Ages_27 | F28: C:\Essays\Geo_Dating\Dating\Negative_Ages\Negative_Ages_27.pdf
A29: 28 | B29: Re–Os Isotopic Evidence From Mantle Xenoliths | C29: Contributions Mineral Petrology, 2008, Volume 155, Pages 271-293 | D29: C:\Essays\Geo_Dating\Dating\Negative_Ages\ | E29: Negative_Ages_28 | F29: C:\Essays\Geo_Dating\Dating\Negative_Ages\Negative_Ages_28.pdf | G29: Re–Os Isotopic Evidence From Mantle Xenoliths, Contributions Mineral Petrology, 2008, Volume 155, Pages 271-293
A30: 29 | D30: C:\Essays\Geo_Dating\Dating\Negative_Ages\ | E30: Negative_Ages_29 | F30: C:\Essays\Geo_Dating\Dating\Negative_Ages\Negative_Ages_29.pdf
A31: 30 | B31: Re-Os Isotopes in Mantle Sulfides | C31: Geochimica et Cosmochimica Acta, 2002, Volume 66, No. 6, Pages 1037-1050 | D31: C:\Essays\Geo_Dating\Dating\Negative_Ages\ | E31: Negative_Ages_30 | F31: C:\Essays\Geo_Dating\Dating\Negative_Ages\Negative_Ages_30.pdf
A32: 31 | D32: C:\Essays\Geo_Dating\Dating\Negative_Ages\ | E32: Negative_Ages_31 | F32: C:\Essays\Geo_Dating\Dating\Negative_Ages\Negative_Ages_31.pdf

Sheet Negative_03
A1: Table 2
F2: Age | H2: Age | I2: Age Ratio
A3: Sample | D3: 238U/206Pb | E3: 206Pb/238U | F3: 206Pb/238U | G3: 207Pb/206Pb | H3: 207Pb/206Pb
A4: TH1.01.1 | B4: 166 | C4: 130 | D4: 23.3 | E4: =(1/D4) -> 0.04291845494 | F4: =[1]!AgePb6U8(E4) -> 270.8975973 | G4: 0.848 | H4: =[1]!AgePb76(G4) -> 5004.572734 | I4: =(H4/F4) -> 18.47403884 | J4: 0.0579 | K4: 4 | L4: 0.0016 | M4: 2.118 | N4: 4 | O4: 0.025
A5: TH1.02.1 | B5: 188 | C5: 104 | D5: 365 | E5: =(1/D5) -> 0.002739726027 | F5: =[1]!AgePb6U8(E5) -> 17.63725911 | G5: 0.805 | H5: =[1]!AgePb76(G5) -> 4930.608633 | I5: =(H5/F5) -> 279.5563984 | J5: 0.0517 | K5: 4 | L5: 0.0052 | M5: 1.92 | N5: 4 | O5: 0.081
A6: TH1.03.1 | B6: 213 | C6: 190 | D6: 793 | E6: 0.001261034048 | F6: =[1]!AgePb6U8(E6) -> 8.12402651 | G6: 0.738 | H6: =[1]!AgePb76(G6) -> 4806.543571 | I6: 591.6454809 | J6: 0.0591 | K6: 4 | L6: 0.0136 | M6: 1.914 | N6: 4 | O6: 0.249
A7: TH1.03.2 | B7: 168 | C7: 136 | D7: 82.3 | E7: 0.01215066829 | F7: =[1]!AgePb6U8(E7) -> 77.8561901 | G7: 0.93 | H7: =[1]!AgePb76(G7) -> 5135.184962 | I7: 65.95731123 | J7: 0.0683 | K7: 4 | L7: 0.008 | M7: 2.426 | N7: 4 | O7: 0.258
A8: TH2.01.1 | B8: 148 | C8: 70 | D8: 12387 | E8: 8.072979737e-05 | F8: =[1]!AgePb6U8(E8) -> 0.5203967052 | G8: 0.596 | H8: =[1]!AgePb76(G8) -> 4498.277133 | I8: 8643.938534 | J8: 0.038 | K8: 4 | L8: 0.0364 | M8: 2.091 | N8: 4 | O8: 0.257
A9: TH2.02.1 | B9: 192 | C9: 109 | D9: 1293 | E9: 0.0007733952049 | F9: =[1]!AgePb6U8(E9) -> 4.983698881 | G9: 0.888 | H9: =[1]!AgePb76(G9) -> 5069.884117 | I9: 1017.293428 | J9: 0.0536 | K9: 4 | L9: 0.0093 | M9: 2.121 | N9: 4 | O9: 0.098
A10: TH2.03.1 | B10: 166 | C10: 43 | D10: 13826 | E10: 7.232749892e-05 | F10: =[1]!AgePb6U8(E10) -> 0.4662361541 | G10: 0.365 | H10: =[1]!AgePb76(G10) -> 3770.793387 | I10: 8087.732694 | J10: 0.0232 | K10: 4 | L10: 0.0268 | M10: 1.419 | N10: 4 | O10: 0.306
A11: TH2.04.1 | B11: 140 | C11: 76 | D11: 5671 | E11: 0.0001763357433 | F11: =[1]!AgePb6U8(E11) -> 1.136633025 | G11: 0.65 | H11: =[1]!AgePb76(G11) -> 4623.953633 | I11: 4068.114803 | J11: 0.0656 | K11: 4 | L11: 0.0441 | M11: 2.141 | N11: 4 | O11: 0.282
A12: TH2.05.1 | B12: 181 | C12: 73 | D12: 247 | E12: 0.004048582996 | F12: =[1]!AgePb6U8(E12) -> 26.04615334 | G12: 0.837 | H12: =[1]!AgePb76(G12) -> 4986.037672 | I12: 191.4308653 | J12: 0.0544 | K12: 4 | L12: 0.0166 | M12: 2.033 | N12: 4 | O12: 0.682
A13: TH2.06.1 | B13: 117 | C13: 37 | D13: 8084 | E13: 0.0001237011381 | F13: =[1]!AgePb6U8(E13) -> 0.7973794533 | G13: 0.448 | H13: =[1]!AgePb76(G13) -> 4078.580719 | I13: 5114.980957 | J13: 0.052 | K13: 4 | L13: 0.0428 | M13: 1.664 | N13: 4 | O13: 0.133
A14: TH2.06.2 | B14: 133 | C14: 51 | D14: 7388 | E14: 0.0001353546291 | F14: =[1]!AgePb6U8(E14) -> 0.8724929542 | G14: 0.479 | H14: =[1]!AgePb76(G14) -> 4177.848095 | I14: 4788.403248 | J14: 0.0674 | K14: 4 | L14: 0.0622 | M14: 2.173 | N14: 4 | O14: 0.11
A15: TH2.07.1 | B15: 322 | C15: 161 | D15: 7785 | E15: 0.0001284521516 | F15: =[1]!AgePb6U8(E15) -> 0.8280025934 | G15: 0.706 | H15: =[1]!AgePb76(G15) -> 4742.979152 | I15: 5728.21775 | J15: 0.0519 | K15: 4 | L15: 0.0276 | M15: 1.818 | N15: 4 | O15: 0.094
A16: TH2.08.1 | B16: 152 | C16: 60 | D16: 7084 | E16: 0.0001411631846 | F16: =[1]!AgePb6U8(E16) -> 0.9099321325 | G16: 0.633 | H16: =[1]!AgePb76(G16) -> 4585.636324 | I16: 5039.536642 | J16: 0.0562 | K16: 4 | L16: 0.0299 | M16: 1.748 | N16: 4 | O16: 0.171
A17: TH2.09.1 | B17: 226 | C17: 196 | D17: 2923 | E17: 0.0003421142662 | F17: =[1]!AgePb6U8(E17) -> 2.205033092 | G17: 0.727 | H17: =[1]!AgePb76(G17) -> 4785.030986 | I17: 2170.049512 | J17: 0.0696 | K17: 4 | L17: 0.0181 | M17: 1.79 | N17: 4 | O17: 0.537
A18: TH2.10.1 | B18: 129 | C18: 69 | D18: 9.73 | E18: 0.1027749229 | F18: =[1]!AgePb6U8(E18) -> 630.6505105 | G18: 0.859 | H18: =[1]!AgePb76(G18) -> 5022.854165 | I18: 7.964560531 | J18: 0.0551 | K18: 4 | L18: 0.0025 | M18: 2.09 | N18: 4 | O18: 0.043
A19: TH2.11.1 | B19: 122 | C19: 57 | D19: 530 | E19: 0.001886792453 | F19: =[1]!AgePb6U8(E19) -> 12.15158547 | G19: 0.852 | H19: =[1]!AgePb76(G19) -> 5011.249512 | I19: 412.3947056 | J19: 0.0704 | K19: 4 | L19: 0.043 | M19: 2.115 | N19: 4 | O19: 0.814
A20: TH2.12.1 | B20: 185 | C20: 98 | D20: 2924 | E20: 0.000341997264 | F20: =[1]!AgePb6U8(E20) -> 2.204279106 | G20: 0.751 | H20: =[1]!AgePb76(G20) -> 4831.530747 | I20: 2191.887014 | J20: 0.0682 | K20: 4 | L20: 0.0414 | M20: 1.953 | N20: 4 | O20: 0.564
E21: Average | F21: =AVERAGE(F4:F20) -> 62.25220038 | H21: =AVERAGE(H4:H20) -> 4709.503856
E22: Maximim | F22: =MAX(F4:F21) -> 630.6505105 | H22: =MAX(H4:H21) -> 5135.184962
E23: Minimum | F23: =MIN(F4:F22) -> 0.4662361541 | H23: =MIN(H4:H22) -> 3770.793387
A26: Table 3
F27: Age | H27: Age | I27: Age Ratio
A28: Sample | D28: 238U/206Pb | E28: 206Pb/238U | F28: 206Pb/238U | G28: 207Pb/206Pb | H28: 207Pb/206Pb
A29: UZ01.1 | B29: 311 | C29: 292 | D29: 4270 | E29: =(1/D29) -> 0.0002341920375 | F29: =[1]!AgePb6U8(E29) -> 1.50952212 | G29: 0.832 | H29: =[1]!AgePb76(G29) -> 4977.526908 | I29: =(H29/F29) -> 3297.418993 | J29: 0.036 | K29: 4 | L29: 0.007 | M29: 2.041 | N29: 4 | O29: 0.071
A30: UZ02.1 | B30: 282 | C30: 210 | D30: 9164 | E30: =(1/D30) -> 0.0001091226539 | F30: =[1]!AgePb6U8(E30) -> 0.7034114451 | G30: 0.73 | H30: =[1]!AgePb76(G30) -> 4790.932329 | I30: =(H30/F30) -> 6810.995701 | J30: 0.059 | K30: 4 | L30: 0.018 | M30: 2.04 | N30: 4 | O30: 0.128
A31: UZ03.1 | B31: 336 | C31: 268 | D31: 13326 | E31: 7.50412727e-05 | F31: =[1]!AgePb6U8(E31) -> 0.483728975 | G31: 0.67 | H31: =[1]!AgePb76(G31) -> 4667.680885 | I31: 9649.372121 | J31: 0.031 | K31: 4 | L31: 0.01 | M31: 1.844 | N31: 4 | O31: 0.119
A32: UZ04.1 | B32: 288 | C32: 221 | D32: 10841 | E32: 9.224241306e-05 | F32: =[1]!AgePb6U8(E32) -> 0.5946053763 | G32: 0.725 | H32: =[1]!AgePb76(G32) -> 4781.082297 | I32: 8040.765334 | J32: 0.051 | K32: 4 | L32: 0.012 | M32: 1.851 | N32: 4 | O32: 0.104
A33: UZ05.1 | B33: 194 | C33: 126 | D33: 2217 | E33: 0.000451059991 | F33: =[1]!AgePb6U8(E33) -> 2.907063942 | G33: 0.821 | H33: =[1]!AgePb76(G33) -> 4958.6103 | I33: 1705.710779 | J33: 0.038 | K33: 4 | L33: 0.023 | M33: 2.005 | N33: 4 | O33: 0.595
A34: UZ06.1 | B34: 264 | C34: 229 | D34: 19232 | E34: 5.199667221e-05 | F34: =[1]!AgePb6U8(E34) -> 0.335183371 | G34: 0.651 | H34: =[1]!AgePb76(G34) -> 4626.174033 | I34: 13801.91988 | J34: 0.06 | K34: 4 | L34: 0.015 | M34: 1.918 | N34: 4 | O34: 0.125
A35: UZ07.1 | B35: 230 | C35: 159 | D35: 3830 | E35: 0.0002610966057 | F35: =[1]!AgePb6U8(E35) -> 1.68291717 | G35: 0.784 | H35: =[1]!AgePb76(G35) -> 4892.944185 | I35: 2907.418305 | J35: 0.028 | K35: 4 | L35: 0.014 | M35: 2.002 | N35: 4 | O35: 0.131
A36: UZ08.1 | B36: 435 | C36: 416 | D36: 14270 | E36: 7.007708479e-05 | F36: =[1]!AgePb6U8(E36) -> 0.4517300855 | G36: 0.629 | H36: =[1]!AgePb76(G36) -> 4576.460044 | I36: 10130.96137 | J36: 0.048 | K36: 4 | L36: 0.01 | M36: 1.873 | N36: 4 | O36: 0.083
A37: UZ09.1 | B37: 356 | C37: 317 | D37: 22090 | E37: 4.526935265e-05 | F37: =[1]!AgePb6U8(E37) -> 0.2918183918 | G37: 0.588 | H37: =[1]!AgePb76(G37) -> 4478.622393 | I37: 15347.29311 | J37: 0.037 | K37: 4 | L37: 0.027 | M37: 1.707 | N37: 4 | O37: 0.14
A38: UZ10.1 | B38: 349 | C38: 336 | D38: 25712 | E38: 3.889234599e-05 | F38: =[1]!AgePb6U8(E38) -> 0.2507112954 | G38: 0.626 | H38: =[1]!AgePb76(G38) -> 4569.536646 | I38: 18226.28948 | J38: 0.061 | K38: 4 | L38: 0.023 | M38: 2.064 | N38: 4 | O38: 0.133
A39: UZ10.2 | B39: 221 | C39: 154 | D39: 15341 | E39: 6.51847989e-05 | F39: =[1]!AgePb6U8(E39) -> 0.4201945171 | G39: 0.757 | H39: =[1]!AgePb76(G39) -> 4842.908147 | I39: 11525.39586 | J39: 0.073 | K39: 4 | L39: 0.026 | M39: 2.067 | N39: 4 | O39: 0.182
E40: Average | F40: =AVERAGE(F29:F39) -> 0.8755351535 | G40: Average | H40: =AVERAGE(H29:H39) -> 4742.04347
E41: Maximim | F41: =MAX(F29:F40) -> 2.907063942 | G41: Maximim | H41: =MAX(H29:H40) -> 4977.526908
E42: Minimum | F42: =MIN(F29:F41) -> 0.2507112954 | G42: Minimum | H42: =MIN(H29:H41) -> 4478.622393
E46: Table 2 | F46: Age | G46: Age
E47: Data | F47: 206Pb/238U | G47: 207Pb/206Pb
E48: Average | F48: 62.25220038 | G48: 4709.503856
E49: Maximim | F49: 630.6505105 | G49: 5135.184962
E50: Minimum | F50: 0.4662361541 | G50: 3770.793387
E54: Table 3 | F54: Age | G54: Age
E55: Data | F55: 206Pb/238U | G55: 207Pb/206Pb
E56: Average | F56: 0.8755351535 | G56: 4742.04347
E57: Maximim | F57: 2.907063942 | G57: 4977.526908
E58: Minimum | F58: 0.2507112954 | G58: 4478.622393

Sheet Negative_04
A2: Table 1.
A3: Initial | B3: Today | C3: Today | D3: The Ratio | E3: Half | F3: Decay | G3: 2.303/Delta | H3: Age | I3: Age | J3: Age
A4: 87Sr/86Sr | B4: 87Sr/86Sr | C4: 87Rb/86Sr | D4: Plus One | E4: Life | F4: Constant | G4: Constant | H4: Years | I4: Million Years | J4: Billion Years
A5: 0.70658 | B5: 0.71319 | C5: 439.1 | D5: =1+((B5-A5)/C5) -> 1.000015054 | E5: 48800000000 | F5: =(0.693/E5) -> 1.420081967e-11 | G5: =(2.303/F5) -> 1.621737374e+11 | H5: =(LOG(D5))*(G5) -> 1060228.783 | I5: =(H5/1000000) -> 1.060228783 | J5: =(I5/1000) -> 0.001060228783
A6: 0.70661 | B6: 0.713313 | C6: 445.4 | D6: =1+((B6-A6)/C6) -> 1.000015049 | E6: 48800000000 | F6: =(0.693/E6) -> 1.420081967e-11 | G6: =(2.303/F6) -> 1.621737374e+11 | H6: =(LOG(D6))*(G6) -> 1059938.276 | I6: =(H6/1000000) -> 1.059938276 | J6: =(I6/1000) -> 0.001059938276
A7: 0.70654 | B7: 0.70924 | C7: 197.9 | D7: 1.000013643 | E7: 48800000000 | F7: 1.420081967e-11 | G7: 1.621737374e+11 | H7: 960903.6522 | I7: 0.9609036522 | J7: 0.0009609036522
A8: 0.70659 | B8: 0.709418 | C8: 207.6 | D8: 1.000013622 | E8: 48800000000 | F8: 1.420081967e-11 | G8: 1.621737374e+11 | H8: 959431.4149 | I8: 0.9594314149 | J8: 0.0009594314149
A9: 0.70724 | B9: 0.71244 | C9: 397.7 | D9: 1.000013075 | E9: 48800000000 | F9: 1.420081967e-11 | G9: 1.621737374e+11 | H9: 920894.2263 | I9: 0.9208942263 | J9: 0.0009208942263
A10: 0.70743 | B10: 0.7128 | C10: 415.6 | D10: 1.000012921 | E10: 48800000000 | F10: 1.420081967e-11 | G10: 1.621737374e+11 | H10: 910040.6201 | I10: 0.9100406201 | J10: 0.0009100406201
A11: 0.70769 | B11: 0.711782 | C11: 351.4 | D11: 1.000011645 | E11: 48800000000 | F11: 1.420081967e-11 | G11: 1.621737374e+11 | H11: 820155.4514 | I11: 0.8201554514 | J11: 0.0008201554514
A12: 0.70718 | B12: 0.7094 | C12: 198.3 | D12: 1.000011195 | E12: 48800000000 | F12: 1.420081967e-11 | G12: 1.621737374e+11 | H12: 788483.6022 | I12: 0.7884836022 | J12: 0.0007884836022
A13: 0.70709 | B13: 0.709491 | C13: 213.8 | D13: 1.00001123 | E13: 48800000000 | F13: 1.420081967e-11 | G13: 1.621737374e+11 | H13: 790946.0423 | I13: 0.7909460423 | J13: 0.0007909460423
A14: 0.70673 | B14: 0.709345 | C14: 204.4 | D14: 1.000012794 | E14: 48800000000 | F14: 1.420081967e-11 | G14: 1.621737374e+11 | H14: 901058.2354 | I14: 0.9010582354 | J14: 0.0009010582354
A15: 0.7072 | B15: 0.711523 | C15: 338.6 | D15: 1.000012767 | E15: 48800000000 | F15: 1.420081967e-11 | G15: 1.621737374e+11 | H15: 899208.381 | I15: 0.899208381 | J15: 0.000899208381
A16: 0.7075 | B16: 0.712816 | C16: 416.1 | D16: 1.000012776 | E16: 48800000000 | F16: 1.420081967e-11 | G16: 1.621737374e+11 | H16: 899806.8995 | I16: 0.8998068995 | J16: 0.0008998068995
A17: 0.70538 | B17: 0.708901 | C17: 206.7 | D17: 1.000017034 | E17: 48800000000 | F17: 1.420081967e-11 | G17: 1.621737374e+11 | H17: 1199738.75 | I17: 1.19973875 | J17: 0.00119973875
A18: 0.70588 | B18: 0.711515 | C18: 374.3 | D18: 1.000015055 | E18: 48800000000 | F18: 1.420081967e-11 | G18: 1.621737374e+11 | H18: 1060316.845 | I18: 1.060316845 | J18: 0.001060316845
A19: 0.70634 | B19: 0.71059 | C19: 318.4 | D19: 1.000013348 | E19: 48800000000 | F19: 1.420081967e-11 | G19: 1.621737374e+11 | H19: 940108.1316 | I19: 0.9401081316 | J19: 0.0009401081316
A20: 0.70627 | B20: 0.70868 | C20: 188.3 | D20: 1.000012799 | E20: 48800000000 | F20: 1.420081967e-11 | G20: 1.621737374e+11 | H20: 901423.301 | I20: 0.901423301 | J20: 0.000901423301
A21: 0.70624 | B21: 0.708913 | C21: 209.5 | D21: 1.000012759 | E21: 48800000000 | F21: 1.420081967e-11 | G21: 1.621737374e+11 | H21: 898621.8982 | I21: 0.8986218982 | J21: 0.0008986218982
A22: 0.70649 | B22: 0.708791 | C22: 200.4 | D22: 1.000011482 | E22: 48800000000 | F22: 1.420081967e-11 | G22: 1.621737374e+11 | H22: 808688.4583 | I22: 0.8086884583 | J22: 0.0008086884583
A23: 0.70635 | B23: 0.708211 | C23: 223.7 | D23: 1.000008319 | E23: 48800000000 | F23: 1.420081967e-11 | G23: 1.621737374e+11 | H23: 585926.876 | I23: 0.585926876 | J23: 0.000585926876
A28: Table 2.
A29: Initial | B29: Today | C29: Today | D29: The Ratio | E29: Half | F29: Decay | G29: 2.303/Delta | H29: Age | I29: Age | J29: Age
A30: 87Sr/86Sr | B30: 87Sr/86Sr | C30: 87Rb/86Sr | D30: Plus One | E30: Life | F30: Constant | G30: Constant | H30: Years | I30: Million Years | J30: Billion Years
A31: 0.70709 | B31: 0.709491 | C31: 213.8 | D31: =1+((B31-A31)/C31) -> 1.00001123 | E31: 48800000000 | F31: =(0.693/E31) -> 1.420081967e-11 | G31: =(2.303/F31) -> 1.621737374e+11 | H31: =(LOG(D31))*(G31) -> 790946.0423 | I31: =(H31/1000000) -> 0.7909460423
A32: 0.70644 | B32: 0.706448 | C32: 0.3237 | D32: =1+((B32-A32)/C32) -> 1.000024714 | E32: 48800000000 | F32: =(0.693/E32) -> 1.420081967e-11 | G32: =(2.303/F32) -> 1.621737374e+11 | H32: =(LOG(D32))*(G32) -> 1740631.176 | I32: =(H32/1000000) -> 1.740631176
A33: 0.70622 | B33: 0.706224 | C33: 0.2609 | D33: 1.000015332 | E33: 48800000000 | F33: 1.420081967e-11 | G33: 1.621737374e+11 | H33: 1079810.185 | I33: 1.079810185
A34: 0.70716 | B34: 0.707165 | C34: 0.3787 | D34: 1.000013203 | E34: 48800000000 | F34: 1.420081967e-11 | G34: 1.621737374e+11 | H34: 929900.9018 | I34: 0.9299009018
A35: 0.70641 | B35: 0.706412 | C35: 0.2724 | D35: 1.000007342 | E35: 48800000000 | F35: 1.420081967e-11 | G35: 1.621737374e+11 | H35: 517113.8083 | I35: 0.5171138083
A36: 0.70638 | B36: 0.706386 | C36: 0.2745 | D36: 1.000021858 | E36: 48800000000 | F36: 1.420081967e-11 | G36: 1.621737374e+11 | H36: 1539462.066 | I36: 1.539462066
A37: 0.70674 | B37: 0.706801 | C37: 5.387 | D37: 1.000011324 | E37: 48800000000 | F37: 1.420081967e-11 | G37: 1.621737374e+11 | H37: 797526.7106 | I37: 0.7975267106
A38: 0.70637 | B38: 0.706425 | C38: 4.548 | D38: 1.000012093 | E38: 48800000000 | F38: 1.420081967e-11 | G38: 1.621737374e+11 | H38: 851734.9024 | I38: 0.8517349024
A39: 0.70721 | B39: 0.707215 | C39: 0.7275 | D39: 1.000006873 | E39: 48800000000 | F39: 1.420081967e-11 | G39: 1.621737374e+11 | H39: 484061.2867 | I39: 0.4840612867
A40: 0.7066 | B40: 0.706715 | C40: 10.09 | D40: 1.000011397 | E40: 48800000000 | F40: 1.420081967e-11 | G40: 1.621737374e+11 | H40: 802729.1533 | I40: 0.8027291533
A41: 0.70661 | B41: 0.706724 | C41: 10.23 | D41: 1.000011144 | E41: 48800000000 | F41: 1.420081967e-11 | G41: 1.621737374e+11 | H41: 784858.9851 | I41: 0.7848589851
A42: 0.70624 | B42: 0.708913 | C42: 209.5 | D42: 1.000012759 | E42: 48800000000 | F42: 1.420081967e-11 | G42: 1.621737374e+11 | H42: 898621.8982 | I42: 0.8986218982
A43: 0.70602 | B43: 0.706021 | C43: 0.296 | D43: 1.000003378 | E43: 48800000000 | F43: 1.420081967e-11 | G43: 1.621737374e+11 | H43: 237942.7036 | I43: 0.2379427036
A44: 0.70632 | B44: 0.706327 | C44: 0.3526 | D44: 1.000019853 | E44: 48800000000 | F44: 1.420081967e-11 | G44: 1.621737374e+11 | H44: 1398222.408 | I44: 1.398222408
A45: 0.70601 | B45: 0.706012 | C45: 0.2582 | D45: 1.000007746 | E45: 48800000000 | F45: 1.420081967e-11 | G45: 1.621737374e+11 | H45: 545552.9549 | I45: 0.5455529549
A46: 0.70601 | B46: 0.706015 | C46: 0.2741 | D46: 1.000018242 | E46: 48800000000 | F46: 1.420081967e-11 | G46: 1.621737374e+11 | H46: 1284759.52 | I46: 1.28475952
A47: 0.70601 | B47: 0.706012 | C47: 0.2724 | D47: 1.000007342 | E47: 48800000000 | F47: 1.420081967e-11 | G47: 1.621737374e+11 | H47: 517113.8083 | I47: 0.5171138083
A48: 0.70641 | B48: 0.706518 | C48: 8.4615 | D48: 1.000012764 | E48: 48800000000 | F48: 1.420081967e-11 | G48: 1.621737374e+11 | H48: 898956.0546 | I48: 0.8989560546
A49: 0.70641 | B49: 0.706423 | C49: 0.836 | D49: 1.00001555 | E49: 48800000000 | F49: 1.420081967e-11 | G49: 1.621737374e+11 | H49: 1095212.861 | I49: 1.095212861
A50: 0.70599 | B50: 0.706085 | C50: 7.567 | D50: 1.000012555 | E50: 48800000000 | F50: 1.420081967e-11 | G50: 1.621737374e+11 | H50: 884223.3551 | I50: 0.8842233551
A51: 0.70605 | B51: 0.706145 | C51: 7.447 | D51: 1.000012757 | E51: 48800000000 | F51: 1.420081967e-11 | G51: 1.621737374e+11 | H51: 898471.5256 | I51: 0.8984715256
A52: 0.70605 | B52: 0.706149 | C52: 7.698 | D52: 1.00001286 | E52: 48800000000 | F52: 1.420081967e-11 | G52: 1.621737374e+11 | H52: 905772.919 | I52: 0.905772919
A53: 0.70516 | B53: 0.719604 | C53: 1130 | D53: 1.000012782 | E53: 48800000000 | F53: 1.420081967e-11 | G53: 1.621737374e+11 | H53: 900266.5155 | I53: 0.9002665155

Sheet Negative_06
E1: Age | G1: Age | H1: Age
A2: Table 1 | B2: Pb 206/204 | C2: Pb 207/204 | D2: Pb 207/206 | E2: Pb 207/206 | G2: Pb 207/206 | H2: Pb 207/206
A3: 163 | B3: 31.559 | C3: 20.074 | D3: =(C3/B3) -> 0.6360784562 | E3: =[1]!AgePb76($D$3) -> 4592.656256 | G3: 6450.695663 | H3: 5799.138085
A4: 163 | B4: 33.515 | C4: 20.811 | D4: =(C4/B4) -> 0.6209458451 | E4: =[1]!AgePb76($D$4) -> 4557.791744 | G4: 6330.485656 | H4: 5762.584848
A5: 163 | B5: 33.456 | C5: 20.869 | D5: 0.6237745098 | E5: =[1]!AgePb76($D$5) -> 4564.377616 | G5: 6315.354393 | H5: 5735.397078
A6: 163 | B6: 36.118 | C6: 21.549 | D6: 0.5966277203 | E6: =[1]!AgePb76($D$6) -> 4499.807322 | G6: 6216.501632 | H6: 5722.811787
A7: 163 | B7: 24.254 | C7: 34.689 | D7: 1.430238311 | E7: =[1]!AgePb76($D$7) -> 5735.397078 | G7: 6108.671559 | H7: 5710.982443
A8: 163 | B8: 24.119 | C8: 35.183 | D8: 1.458725486 | E8: =[1]!AgePb76($D$8) -> 5762.584848 | G8: 6009.25263 | H8: 4965.511686
A9: 163 | B9: 24.453 | C9: 34.656 | D9: 1.417249417 | E9: =[1]!AgePb76($D$9) -> 5722.811787
A10: 163 | B10: 24.45 | C10: 34.356 | D10: 1.405153374 | E10: =[1]!AgePb76($D$10) -> 5710.982443
A11: 163 | B11: 24.574 | C11: 36.811 | D11: 1.497965329 | E11: =[1]!AgePb76($D$11) -> 5799.138085
A12: 163 | B12: 948.9 | C12: 24.529 | D12: 0.0258499315 | E12: =[1]!AgePb76($D$12) -> 
A13: 163 | B13: 410.24 | C13: 23.933 | D13: 0.05833902106 | E13: =[1]!AgePb76($D$13) -> 542.5171888
A14: 163 | B14: 346.2 | C14: 24.382 | D14: 0.07042749856 | E14: =[1]!AgePb76($D$14) -> 940.8428382
A15: 184 | B15: 20.548 | C15: 16.952 | D15: 0.8249951333 | E15: =[1]!AgePb76($D$15) -> 4965.511686
A16: 137 | B16: 17.99 | C16: 33.784 | D16: 1.877932185 | E16: =[1]!AgePb76($D$16) -> 6108.671559
E18: Age
A19: Table 2 | B19: Pb 207/204 | C19: Pb 206/204 | D19: Pb 207/206 | E19: Pb 207/206
A20: 1 | B20: 43.934 | C20: 21.612 | D20: =(B20/C20) -> 2.032852119 | E20: =[1]!AgePb76($D$20) -> 6216.501632
A21: 2 | B21: 59.005 | C21: 24.414 | D21: =(B21/C21) -> 2.416850987 | E21: =[1]!AgePb76($D$21) -> 6450.695663
A22: 3 | B22: 51.053 | C22: 23.089 | D22: 2.211139504 | E22: =[1]!AgePb76($D$22) -> 6330.485656
A23: 4 | B23: 47.818 | C23: 21.869 | D23: 2.186565458 | E23: =[1]!AgePb76($D$23) -> 6315.354393
A24: 5 | B24: 31.185 | C24: 17.861 | D24: 1.745982868 | E24: =[1]!AgePb76($D$24) -> 6009.25263

Sheet Negative_07
A2: Cinder | B2: Butte | G2: Age | N2: Sample | O2: Minimum | P2: Maximum | Q2: Difference | R2: Ratio
A3: 51.96293 | B3: 0 | C3: 0.17894 | D3: -0.92146 | E3: 0.99675 | F3: -1.8 | G3: -579.3 | H3: 152.1 | I3: 0.12 | J3: 670 | K3: 1.9 | N3: Cinder Butte | O3: -579.3 | P3: 56.7 | Q3: =ABS(O3)+P3 -> 636 | R3: =ABS(O3/P3) -> 10.21693122
A4: 43.18874 | B4: 0.75037 | C4: 0.14732 | D4: -0.29478 | E4: 0.9826 | F4: -0.7 | G4: -185.3 | H4: 114.9 | I4: 0.33 | J4: 710 | K4: 5.3 | N4: Andesite of Sugarloaf Peak | O4: 14.7 | P4: 589.5 | Q4: =(P3-O3) -> 636 | R4: =(P4/O4) -> 40.10204082
A5: 33.32689 | B5: 1.67688 | C5: 0.11312 | D5: 0.02087 | E5: 0.99223 | F5: 0.1 | G5: 13.1 | H5: 69.1 | I5: 0.63 | J5: 750 | K5: 10.1 | N5: Little Potato Butte | O5: -51.6 | P5: 585.9 | Q5: =ABS(O5)+P5 -> 637.5 | R5: =ABS(P5/O5) -> 11.35465116
A6: 22.02426 | B6: 1.86793 | C6: 0.07486 | D6: 0.03967 | E6: 0.99103 | F6: 0.2 | G6: 24.9 | H6: 39.1 | I6: 0.86 | J6: 790 | K6: 13.8 | N6: Andesite of Potato Butte 1 | O6: -386.3 | P6: 164.5 | Q6: =ABS(O6)+P6 -> 550.8 | R6: =ABS(O6/P6) -> 2.348328267
A7: 10.69357 | B7: 1.87357 | C7: 0.03646 | D7: 0.05608 | E7: 0.96618 | F7: 0.5 | G7: 35.2 | H7: 22.9 | I7: 1.02 | J7: 830 | K7: 16.3 | N7: Andesite of Potato Butte 2 | O7: -289.6 | P7: 2357.4 | Q7: =ABS(O7)+P7 -> 2647 | R7: =ABS(P7/O7) -> 8.14019337
A8: 4.02851 | B8: 1.81948 | C8: 0.01386 | D8: 0.0634 | E8: 0.98871 | F8: 1.6 | G8: 39.8 | H8: 10 | I8: 1.32 | J8: 870 | K8: 21.1 | N8: Hat Creek Basalt 1 | O8: 10 | P8: 2950 | Q8: =(P7-O7) -> 2647 | R8: =(P8/O8) -> 295
A9: 4.14111 | B9: 1.54556 | C9: 0.01415 | D9: 0.0695 | E9: 0.99574 | F9: 1.7 | G9: 43.7 | H9: 11.7 | I9: 0.98 | J9: 910 | K9: 15.7 | N9: Hat Creek Basalt 2 | O9: -89.3 | P9: 92.4 | Q9: =ABS(O9)+P9 -> 181.7 | R9: =ABS(P9/O9) -> 1.034714446
A10: 9.64345 | B10: 1.90255 | C10: 0.03302 | D10: 0.02402 | E10: 0.9948 | F10: 0.2 | G10: 15.1 | H10: 22.7 | I10: 0.5 | J10: 960 | K10: 7.9
A11: 21.62137 | B11: 1.13691 | C11: 0.07333 | D11: 0.03218 | E11: 0.99702 | F11: 0.1 | G11: 20.2 | H11: 40.4 | I11: 0.28 | J11: 1020 | K11: 4.5
A12: 25.91462 | B12: 19.67318 | C12: 0.09247 | D12: 0.09029 | E12: 0.99592 | F12: 0.3 | G12: 56.7 | H12: 68.3 | I12: 0.21 | J12: 1250 | K12: 3.4
F13: Minimum | G13: =MIN(G3:G12) -> -579.3
F14: Maximum | G14: =MAX(G3:G13) -> 56.7
A17: Andesite | B17: of | C17: Sugarloaf | D17: Peak | G17: Age
A18: 13.02762 | B18: 5.08965 | C18: 0.04507 | D18: 0.09283 | E18: 0.02254 | F18: 0.7 | G18: 58.3 | H18: 49.5 | I18: 0.11 | J18: 680 | K18: 1.3
A19: 7.50733 | B19: 0.86911 | C19: 0.02549 | D19: 0.03518 | E19: 0.01913 | F19: 0.5 | G19: 22.1 | H19: 9.5 | I19: 1.68 | J19: 725 | K19: 20.7
A20: 6.00897 | B20: 0.79394 | C20: 0.02044 | D20: 0.02344 | E20: 0.01857 | F20: 0.4 | G20: 14.7 | H20: 11.4 | I20: 1.78 | J20: 750 | K20: 22
A21: 5.48102 | B21: 1.50721 | C21: 0.01863 | D21: 0.08256 | E21: 0.01823 | F21: 1.5 | G21: 51.9 | H21: 9.2 | I21: 1.91 | J21: 780 | K21: 23.5
A22: 5.4376 | B22: 2.33292 | C22: 0.01863 | D22: 0.10419 | E22: 0.01831 | F22: 1.9 | G22: 65.5 | H22: 19.1 | I22: 1.47 | J22: 810 | K22: 18.1
A23: 7.56372 | B23: 3.06808 | C23: 0.02621 | D23: 0.04606 | E23: 0.02192 | F23: 0.6 | G23: 29 | H23: 11.8 | I23: 0.96 | J23: 870 | K23: 11.8
A24: 17.87968 | B24: 8.64006 | C24: 0.061 | D24: 0.51121 | E24: 0.02949 | F24: 2.8 | G24: 321.3 | H24: 73.2 | I24: 0.1 | J24: 925 | K24: 1.2
A25: 29.7755 | B25: 22.84223 | C25: 0.10353 | D25: 0.938 | E25: 0.03733 | F25: 3.1 | G25: 589.5 | H25: 83.7 | I25: 0.11 | J25: 1600 | K25: 1.4
F26: Minimum | G26: =MIN(G18:G25) -> 14.7
F27: Maximum | G27: =MAX(G18:G26) -> 589.5
A30: Little | B30: Potato | C30: Butte | G30: Age
A31: 27.75003 | B31: 1.4975 | C31: 0.09455 | D31: -0.08214 | E31: 0.03136 | F31: -0.3 | G31: -51.6 | H31: 58.3 | I31: 0.28 | J31: 700 | K31: 4.4
A32: 14.48012 | B32: 1.26551 | C32: 0.04888 | D32: 0.12594 | E32: 0.02328 | F32: 0.9 | G32: 79.2 | H32: 25.1 | I32: 0.79 | J32: 715 | K32: 12.3
A33: 7.87656 | B33: 0.65417 | C33: 0.02649 | D33: 0.09184 | E33: 0.01919 | F33: 1.2 | G33: 57.7 | H33: 14.3 | I33: 0.79 | J33: 730 | K33: 12.3
A34: 5.56068 | B34: 0.86744 | C34: 0.01867 | D34: 0.10259 | E34: 0.01806 | F34: 1.8 | G34: 64.5 | H34: 12.9 | I34: 0.89 | J34: 745 | K34: 13.8
A35: 4.10931 | B35: 1.12036 | C35: 0.01384 | D35: 0.09651 | E35: 0.0171 | F35: 2.4 | G35: 60.7 | H35: 7.7 | I35: 1.16 | J35: 760 | K35: 18
A36: 3.61987 | B36: 1.83097 | C36: 0.01234 | D36: 0.10664 | E36: 0.01651 | F36: 2.9 | G36: 67 | H36: 9.4 | I36: 0.83 | J36: 775 | K36: 12.9
A37: 3.38794 | B37: 2.81448 | C37: 0.01174 | D37: 0.12801 | E37: 0.0162 | F37: 3.8 | G37: 80.5 | H37: 11.3 | I37: 0.6 | J37: 790 | K37: 9.2
A38: 3.5939 | B38: 3.96149 | C38: 0.01273 | D38: 0.12926 | E38: 0.01595 | F38: 3.6 | G38: 81.2 | H38: 15.8 | I38: 0.38 | J38: 805 | K38: 5.9
A39: 4.75027 | B39: 5.80247 | C39: 0.01684 | D39: 0.21013 | E39: 0.01671 | F39: 4.4 | G39: 132.1 | H39: 18 | I39: 0.22 | J39: 820 | K39: 3.4
A40: 5.35474 | B40: 7.11446 | C40: 0.01951 | D40: 0.12808 | E40: 0.01762 | F40: 2.4 | G40: 80.5 | H40: 24.4 | I40: 0.25 | J40: 870 | K40: 3.8
A41: 43.85189 | B41: 9.56223 | C41: 0.14772 | D41: 0.93237 | E41: 0.04641 | F41: 2.1 | G41: 585.9 | H41: 116.5 | I41: 0.07 | J41: 1000 | K41: 1.1
A42: 14.07793 | B42: 27.79772 | C42: 0.05369 | D42: 0.34086 | E42: 0.03143 | F42: 2.4 | G42: 214.2 | H42: 50.7 | I42: 0.19 | J42: 1500 | K42: 3
F43: Minimum | G43: =MIN(G31:G42) -> -51.6
F44: Maximum | G44: =MAX(G31:G43) -> 585.9
A48: Andesite | B48: of | C48: Potato | D48: Butte | E48: 1 | G48: Age
A49: 30.42378 | B49: 0.21663 | C49: 0.10399 | D49: -0.29794 | E49: 0.0339 | F49: -1 | G49: -180.3 | H49: 25.3 | I49: 44.45 | J49: 600 | K49: 3.6
A50: 18.58602 | B50: 0.28885 | C50: 0.06202 | D50: 0.27186 | E50: 0.02626 | F50: 1.5 | G50: 164.5 | H50: 21.3 | I50: 208.65 | J50: 650 | K50: 16.9
A51: 16.92044 | B51: 0.40802 | C51: 0.05724 | D51: 0.02912 | E51: 0.02533 | F51: 0.2 | G51: 17.6 | H51: 26 | I51: 192.62 | J51: 700 | K51: 15.6
A52: 16.00325 | B52: 0.89267 | C52: 0.0539 | D52: 0.13598 | E52: 0.02487 | F52: 0.8 | G52: 82.3 | H52: 35.6 | I52: 352.33 | J52: 750 | K52: 28.6
A53: 13.72811 | B53: 2.09772 | C53: 0.04642 | D53: 0.1629 | E53: 0.02342 | F53: 1.2 | G53: 98.6 | H53: 18.6 | I53: 333.56 | J53: 800 | K53: 27.1
A54: 19.29185 | B54: 4.67453 | C54: 0.066 | D54: 0.13775 | E54: 0.02668 | F54: 0.7 | G54: 83.4 | H54: 18.9 | I54: 72.09 | J54: 825 | K54: 5.8
A55: 34.89725 | B55: 7.34531 | C55: 0.12028 | D55: -0.09191 | E55: 0.03696 | F55: -0.3 | G55: -55.6 | H55: 53.9 | I55: 20.47 | J55: 850 | K55: 1.7
A56: 64.16973 | B56: 8.72185 | C56: 0.22153 | D56: -0.63821 | E56: 0.05741 | F56: -1 | G56: -386.3 | H56: 134.3 | I56: 8.56 | J56: 875 | K56: 0.7
F57: Minimum | G57: =MIN(G45:G56) -> -386.3
F58: Maximum | G58: =MAX(G45:G57) -> 164.5
A62: Andesite | B62: of | C62: Potato | D62: Butte | E62: 2 | G62: Age
A63: 704.72588 | B63: 0.26811 | C63: 2.38414 | D63: 0.23288 | E63: 0.45137 | F63: 0 | G63: 53.8 | H63: 1604 | I63: 1.64 | J63: 700 | K63: 1.7
A64: 149.39758 | B64: 0.14109 | C64: 0.50417 | D64: 0.43399 | E64: 0.21951 | F64: 0.3 | G64: 100.3 | H64: 1387.3 | I64: 11.78 | J64: 750 | K64: 12.2
A65: 165.4603 | B65: 0.25657 | C65: 0.56424 | D65: -1.25253 | E65: 0.11807 | F65: -0.8 | G65: -289.6 | H65: 199.2 | I65: 5.8 | J65: 775 | K65: 6
A66: 103.68352 | B66: 0.37776 | C66: 0.3499 | D66: 0.31917 | E66: 0.07918 | F66: 0.3 | G66: 73.8 | H66: 168.5 | I66: 8.11 | J66: 800 | K66: 8.4
A67: 87.65627 | B67: 0.5887 | C67: 0.29512 | D67: 0.49632 | E67: 0.06888 | F67: 0.6 | G67: 114.7 | H67: 238.8 | I67: 15.07 | J67: 825 | K67: 15.6
A68: 83.31053 | B68: 0.59808 | C68: 0.28178 | D68: 0.09339 | E68: 0.06451 | F68: 0.1 | G68: 21.6 | H68: 73.3 | I68: 7.63 | J68: 850 | K68: 7.9
A69: 84.32374 | B69: 0.96322 | C69: 0.28321 | D69: 0.71264 | E69: 0.06583 | F69: 0.8 | G69: 164.7 | H69: 161.8 | I69: 14.49 | J69: 875 | K69: 15
A70: 88.78438 | B70: 1.72484 | C70: 0.3003 | D70: 0.18529 | E70: 0.06946 | F70: 0.2 | G70: 42.8 | H70: 84.4 | I70: 5.89 | J70: 900 | K70: 6.1
A71: 91.20331 | B71: 2.04101 | C71: 0.30593 | D71: 0.96504 | E71: 0.06861 | F71: 1.1 | G71: 223.1 | H71: 145.1 | I71: 6.66 | J71: 950 | K71: 6.9
A72: 103.01813 | B72: 2.92299 | C72: 0.34517 | D72: 1.25579 | E72: 0.07677 | F72: 1.2 | G72: 290.3 | H72: 99.6 | I72: 5.7 | J72: 1000 | K72: 5.9
A73: 112.66375 | B73: 4.78712 | C73: 0.38237 | D73: 0.05535 | E73: 0.08529 | F73: 0 | G73: 12.8 | H73: 126.1 | I73: 5.12 | J73: 1100 | K73: 5.3
A74: 179.23397 | B74: 6.23208 | C74: 0.60615 | D74: 0.61703 | E74: 0.12481 | F74: 0.3 | G74: 142.6 | H74: 579.4 | I74: 4.15 | J74: 1200 | K74: 4.3
A75: 792.16392 | B75: 6.08336 | C75: 2.64803 | D75: 10.2039 | E75: 0.51053 | F75: 1.3 | G75: 2357.4 | H75: 10922.3 | I75: 3.37 | J75: 1500 | K75: 4.7
F76: Minimum | G76: =MIN(G64:G75) -> -289.6
F77: Maximum | G77: =MAX(G64:G76) -> 2357.4
A81: Hat | B81: Creek | C81: Basalt | D81: 1 | G81: Age
A82: 79.43 | B82: 29.2 | C82: 0.2701 | D82: 1.89 | E82: 0.06346 | F82: 2.31 | G82: 1000 | H82: 370 | I82: 0.04 | J82: 710 | K82: 4.2
A83: 56.47 | B83: 16.58 | C83: 0.19286 | D83: 0.76 | E83: 0.04976 | F83: 1.32 | G83: 400 | H83: 250 | I83: 0.09 | J83: 750 | K83: 9.1
A84: 40.225 | B84: 16.55 | C84: 0.13887 | D84: 0.45 | E84: 0.03932 | F84: 1.11 | G84: 240 | H84: 180 | I84: 0.15 | J84: 800 | K84: 15.1
A85: 35.699 | B85: 17.65 | C85: 0.12349 | D85: 0.56 | E85: 0.03684 | F85: 1.54 | G85: 300 | H85: 160 | I85: 0.12 | J85: 825 | K85: 11.6
A86: 31.198 | B86: 20.45 | C86: 0.10897 | D86: 0.57 | E86: 0.03334 | F86: 1.78 | G86: 300 | H86: 140 | I86: 0.11 | J86: 850 | K86: 11
A87: 29.593 | B87: 86.5 | C87: 0.10509 | D87: 5.59 | E87: 0.03277 | F87: 17.41 | G87: 2950 | H87: 160 | I87: 0.09 | J87: 875 | K87: 8.6
A88: 32.765 | B88: 25.62 | C88: 0.11619 | D88: 0.39 | E88: 0.03507 | F88: 1.17 | G88: 210 | H88: 160 | I88: 0.07 | J88: 900 | K88: 6.9
A89: 50.91 | B89: 27.19 | C89: 0.17923 | D89: 0.03 | E89: 0.0474 | F89: 0.05 | G89: 10 | H89: 230 | I89: 0.07 | J89: 950 | K89: 7.2
A90: 81.73 | B90: 26.7 | C90: 0.28179 | D90: 0.51 | E90: 0.06815 | F90: 0.61 | G90: 270 | H90: 370 | I90: 0.06 | J90: 1000 | K90: 5.6
A91: 102.31 | B91: 28.2 | C91: 0.34941 | D91: 1.24 | E91: 0.07989 | F91: 1.19 | G91: 660 | H91: 450 | I91: 0.05 | J91: 1050 | K91: 5.4
A92: 112.64 | B92: 43.3 | C92: 0.3881 | D92: 1.31 | E92: 0.08712 | F92: 1.12 | G92: 690 | H92: 510 | I92: 0.05 | J92: 1100 | K92: 4.4
A93: 102.21 | B93: 111 | C93: 0.3687 | D93: 1.95 | E93: 0.08193 | F93: 1.72 | G93: 1030 | H93: 530 | I93: 0.03 | J93: 1150 | K93: 3
A94: 80.95 | B94: 113.4 | C94: 0.2981 | D94: 1.72 | E94: 0.06577 | F94: 1.91 | G94: 910 | H94: 430 | I94: 0.06 | J94: 1200 | K94: 6.2
A95: 68.47 | B95: 168.6 | C95: 0.2639 | D95: 3.99 | E95: 0.05811 | F95: 4.95 | G95: 2110 | H95: 500 | I95: 0.01 | J95: 1265 | K95: 1.3
A96: 192.4 | B96: 93 | C96: 0.6818 | D96: -2.2 | E96: 0.1326 | F96: -1.03 | G96: 1100 | H96: 1300 | I96: 0 | J96: 1400 | K96: 0.3
F97: Minimum | G97: =MIN(G85:G96) -> 10
F98: Maximum | G98: =MAX(G85:G97) -> 2950
A103: Hat | B103: Creek | C103: Basalt | D103: 2 | G103: Age
A104: 18.00764 | B104: 17.46026 | C104: 0.0653 | D104: 0.04093 | E104: 0.02753 | F104: 0.2 | G104: 25.2 | H104: 58.8 | I104: 0.11 | J104: 725 | K104: 11
A105: 6.06143 | B105: 20.47469 | C105: 0.0256 | D105: 0.05729 | E105: 0.01906 | F105: 0.9 | G105: 35.3 | H105: 45.1 | I105: 0.18 | J105: 750 | K105: 17.8
A106: 3.2328 | B106: 21.77861 | C106: 0.01642 | D106: 0.03817 | E106: 0.01606 | F106: 1.2 | G106: 23.5 | H106: 53 | I106: 0.17 | J106: 775 | K106: 16.7
A107: 2.70718 | B107: 16.97128 | C107: 0.01334 | D107: 0.0572 | E107: 0.01533 | F107: 2.1 | G107: 35.2 | H107: 72.1 | I107: 0.13 | J107: 800 | K107: 13.1
A108: 5.18434 | B108: 10.08005 | C108: 0.01996 | D108: 0.04937 | E108: 0.0165 | F108: 0.9 | G108: 30.4 | H108: 30 | I108: 0.12 | J108: 850 | K108: 11.5
A109: 5.64386 | B109: 7.47096 | C109: 0.02081 | D109: 0.05733 | E109: 0.01639 | F109: 1 | G109: 35.3 | H109: 47 | I109: 0.07 | J109: 900 | K109: 6.9
A110: 6.96598 | B110: 8.59277 | C110: 0.0258 | D110: -0.00837 | E110: 0.01847 | F110: -0.1 | G110: -5.2 | H110: 113 | I110: 0.05 | J110: 950 | K110: 5.1
A111: 10.6273 | B111: 12.42816 | C111: 0.03964 | D111: -0.14512 | E111: 0.02193 | F111: -1.4 | G111: -89.3 | H111: 88.6 | I111: 0.06 | J111: 1000 | K111: 5.8
A112: 24.30578 | B112: 81.87856 | C112: 0.10316 | D112: 0.08216 | E112: 0.03065 | F112: 0.3 | G112: 50.6 | H112: 144.2 | I112: 0.09 | J112: 1100 | K112: 8.9
A113: 66.99824 | B113: 124.42048 | C113: 0.25845 | D113: 0.15011 | E113: 0.05771 | F113: 0.2 | G113: 92.4 | H113: 441.3 | I113: 1500 | J113: 3.2
F114: Minimum | G114: =MIN(G102:G113) -> -89.3
F115: Maximum | G115: =MAX(G102:G114) -> 92.4

Sheet Negative_08
A4: 87Rb/86Sr | B4: 0.0002 | C4: 0.0004 | D4: 0.0011 | E4: 0.0016 | F4: 0.0002 | G4: 0.0001 | H4: 0.0009 | I4: 0.0002 | J4: 0.0434 | K4: . | L4: . | M4: .
A5: 87Sr/86Sr | B5: 0.703129 | C5: 0.703048 | D5: 0.704074 | E5: 0.704001 | F5: 0.702652 | G5: 0.702901 | H5: 0.704845 | I5: 0.707327 | J5: 0.707086 | K5: 0.703954 | L5: 0.704758 | M5: 0.704201
A6: (87Sr/86Sr)i | B6: 0.703129 | C6: 0.703047 | D6: 0.704072 | E6: 0.703998 | F6: 0.702652 | G6: 0.702901 | H6: 0.704843 | I6: 0.707327 | J6: 0.706993 | K6: . | L6: . | M6: .
A8: 147Sm/144Nd | B8: 0.2013 | C8: 0.2205 | D8: 0.1237 | E8: 0.1258 | F8: 0.2451 | G8: 0.2075 | H8: 0.1873 | I8: 0.1878 | J8: 0.1734 | K8: . | L8: . | M8: .
A9: 143Nd/144Nd | B9: 0.513044 | C9: 0.513022 | D9: 0.512806 | E9: 0.512774 | F9: 0.513143 | G9: 0.513216 | H9: 0.512653 | I9: 0.511836 | J9: 0.51198 | K9: 0.51289 | L9: 0.512907 | M9: 0.512894 | O9: 207Pb/206Pb | P9: 206Pb/238U
A10: (143Nd/144Nd)i | B10: 0.512846 | C10: 0.512806 | D10: 0.512685 | E10: 0.512651 | F10: 0.512902 | G10: 0.513012 | H10: 0.512469 | I10: 0.511652 | J10: 0.51181 | K10: . | L10: . | M10: . | O10: 5049 | P10: 9489
A11: 206Pb/238U | O11: 5035 | P11: 1821
A12: 238U/204Pb | B12: . | C12: . | D12: . | E12: . | F12: 34.53 | G12: 18.29 | H12: 7.66 | I12: 2.33 | J12: . | K12: . | L12: . | M12: . | O12: 5034 | P12: 338
A13: 206Pb/238U | F13: =(F16/F12) -> 0.5140457573 | G13: =(G16/G12) -> 0.9835975943 | H13: 2.5 | I13: 7.824034335 | O13: 5029 | P13: 95
A14: 206Pb/238U, Age | F14: =[1]!AgePb6U8(F13/F12) -> 95.26001039 | G14: =[1]!AgePb6U8(G13/G12) -> 337.6741121 | H14: =[1]!AgePb6U8(H13/H12) -> 1820.766855 | I14: =[1]!AgePb6U8(I13/I12) -> 9489.139922 | O14: 5012
O15: 5009
A16: 206Pb/204Pb | B16: 18.26 | C16: 18.19 | D16: 18.8 | E16: 19.13 | F16: 17.75 | G16: 17.99 | H16: 19.15 | I16: 18.23 | J16: 18.27 | K16: 17.94 | L16: 17.89 | M16: 17.95 | O16: 5006
A17: 207Pb/204Pb | B17: 15.5 | C17: 15.51 | D17: 15.56 | E17: 15.63 | F17: 15.53 | G17: 15.52 | H17: 15.71 | I17: 15.51 | J17: 15.49 | K17: . | L17: 15.5 | M17: 15.54 | O17: 5004
A18: 207Pb/206Pb | B18: =(B17/B16) -> 0.8488499452 | C18: =(C17/C16) -> 0.8526663002 | D18: 0.8276595745 | E18: 0.8170412964 | F18: 0.8749295775 | G18: 0.8627015008 | H18: 0.8203655352 | I18: 0.8507953922 | J18: 0.8478379858 | K18: . | L18: 0.8664058133 | M18: 0.8657381616 | O18: 4970
A19: 207Pb/206Pb, Age | B19: =[1]!AgePb76(B18) -> 5005.994253 | C19: =[1]!AgePb76(C18) -> 5012.358462 | D19: =[1]!AgePb76(D18) -> 4970.094649 | E19: =[1]!AgePb76(E18) -> 4951.736535 | F19: =[1]!AgePb76(F18) -> 5048.892394 | G19: =[1]!AgePb76(G18) -> 5028.950024 | H19: =[1]!AgePb76(H18) -> 4957.511011 | I19: =[1]!AgePb76(I18) -> 5009.242297 | J19: =[1]!AgePb76(J18) -> 5004.301597 | K19: . | L19: =[1]!AgePb76(L18) -> 5035.02278 | M19: =[1]!AgePb76(M18) -> 5033.930287 | O19: 4958
O20: 4952
A21: 176Lu/177Hf | B21: 0.0458 | C21: 0.0301 | D21: 0.0451 | E21: 0.0512 | F21: 0.0336 | G21: 0.0462 | H21: 0.0336 | I21: 0.0176 | J21: 0.0145 | K21: 0.002 | L21: 0.0036 | M21: 0.0029
A22: 176Hf/177Hf | B22: 0.283461 | C22: 0.283038 | D22: 0.283729 | E22: 0.283377 | F22: 0.283231 | G22: 0.283834 | H22: 0.283061 | I22: 0.282262 | J22: 0.282418 | K22: 0.283041 | L22: 0.283035 | M22: 0.282984
A23: (176Hf/177H)i | B23: 0.283333 | C23: 0.281954 | D23: 0.283603 | E23: 0.283233 | F23: 0.283137 | G23: 0.283705 | H23: 0.282967 | I23: 0.282213 | J23: 0.282377 | K23: . | L23: . | M23: .
A29: Rubidium | B29: Table 2
A30: Strontium | B30: Initial | C30: Today | D30: Today | E30: The Ratio | F30: Half | G30: Decay | H30: 2.303/Delta | I30: Age | J30: Age | K30: Age
A31: Dating | B31: 87Sr/86Sr | C31: 87Sr/86Sr | D31: 87Rb/86Sr | E31: Plus One | F31: Life | G31: Constant | H31: Constant | I31: Years | J31: Million Years | K31: Billion Years
B32: 0.703129 | C32: 0.703129 | D32: 0.0002 | E32: =1+((C32-B32)/D32) -> 1 | F32: 48800000000 | G32: =(0.693/F32) -> 1.420081967e-11 | H32: =(2.303/G32) -> 1.621737374e+11 | I32: =(LOG(E32))*(H32) -> 0 | J32: =(I32/1000000) -> 0 | K32: =(J32/1000) -> 0
B33: 0.703047 | C33: 0.703048 | D33: 0.0004 | E33: 1.0025 | F33: 48800000000 | G33: 1.420081967e-11 | H33: 1.621737374e+11 | I33: 175858166.9 | J33: 175.8581669 | K33: =(J33/1000) -> 0.1758581669
B34: 0.704072 | C34: 0.704074 | D34: 0.0011 | E34: 1.001818182 | F34: 48800000000 | G34: 1.420081967e-11 | H34: 1.621737374e+11 | I34: 127940379 | J34: 127.940379 | K34: =(J34/1000) -> 0.127940379
B35: 0.703998 | C35: 0.704001 | D35: 0.0016 | E35: =1+((C35-B35)/D35) -> 1.001875 | F35: 48800000000 | G35: =(0.693/F35) -> 1.420081967e-11 | H35: =(2.303/G35) -> 1.621737374e+11 | I35: =(LOG(E35))*(H35) -> 131934773.4 | J35: =(I35/1000000) -> 131.9347734 | K35: 0.1319347734
B36: 0.702652 | C36: 0.702652 | D36: 0.0002 | E36: 1 | F36: 48800000000 | G36: 1.420081967e-11 | H36: 1.621737374e+11 | I36: 0 | J36: 0 | K36: 0
B37: 0.702901 | C37: 0.702901 | D37: 0.0001 | E37: 1 | F37: 48800000000 | G37: 1.420081967e-11 | H37: 1.621737374e+11 | I37: 0 | J37: 0 | K37: 0
B38: 0.704843 | C38: 0.704845 | D38: 0.0009 | E38: 1.002222222 | F38: 48800000000 | G38: 1.420081967e-11 | H38: 1.621737374e+11 | I38: 156340040.3 | J38: 156.3400403 | K38: 0.1563400403
B39: 0.707327 | C39: 0.707327 | D39: 0.0002 | E39: 1 | F39: 48800000000 | G39: 1.420081967e-11 | H39: 1.621737374e+11 | I39: 0 | J39: 0 | K39: 0
B40: 0.706993 | C40: 0.707086 | D40: 0.0434 | E40: 1.002142857 | F40: 48800000000 | G40: 1.420081967e-11 | H40: 1.621737374e+11 | I40: 150762439.1 | J40: 150.7624391 | K40: 0.1507624391
A43: Neodymium
A44: Samarium | B44: Initial | C44: Today | D44: Today | E44: The Ratio | F44: Half | G44: Decay | H44: 2.303/Delta | I44: Age | J44: Age | K44: Age
A45: Dating | B45: 143Nd/144Nd | C45: 143Nd/144Nd | D45: 147Sm/144Nd | E45: Plus One | F45: Life | G45: Constant | H45: Constant | I45: Years | J45: Million Years | K45: Billion Years
B46: 0.512846 | C46: 0.513044 | D46: 0.2013 | E46: =1+((C46-B46)/D46) -> 1.000983607 | F46: 106000000000 | G46: =(0.693/F46) -> 6.537735849e-12 | H46: =(2.303/G46) -> 3.522626263e+11 | I46: =(LOG(E46))*(H46) -> 150403795.3 | J46: =(I46/1000000) -> 150.4037953 | K46: =(J46/1000) -> 0.1504037953
B47: 0.512806 | C47: 0.513022 | D47: 0.2205 | E47: =1+((C47-B47)/D47) -> 1.000979592 | F47: 106000000000 | G47: 6.537735849e-12 | H47: =(2.303/G47) -> 3.522626263e+11 | I47: =(LOG(E47))*(H47) -> 149790202.7 | J47: =(I47/1000000) -> 149.7902027 | K47: =(J47/1000) -> 0.1497902027
B48: 0.512685 | C48: 0.512806 | D48: 0.1237 | E48: 1.000978173 | F48: 106000000000 | G48: 6.537735849e-12 | H48: 3.522626263e+11 | I48: 149573353.1 | J48: 149.5733531 | K48: 0.1495733531
B49: 0.512651 | C49: 0.512774 | D49: 0.1258 | E49: =1+((C49-B49)/D49) -> 1.000977742 | F49: 106000000000 | G49: =(0.693/F49) -> 6.537735849e-12 | H49: =(2.303/G49) -> 3.522626263e+11 | I49: =(LOG(E49))*(H49) -> 149507549.3 | J49: =(I49/1000000) -> 149.5075493 | K49: =(J49/1000) -> 0.1495075493
B50: 0.512902 | C50: 0.513143 | D50: 0.2451 | E50: 1.000983272 | F50: 106000000000 | G50: 6.537735849e-12 | H50: 3.522626263e+11 | I50: 150352683.5 | J50: 150.3526835 | K50: 0.1503526835
B51: 0.513012 | C51: 0.513216 | D51: 0.2075 | E51: 1.000983133 | F51: 106000000000 | G51: 6.537735849e-12 | H51: 3.522626263e+11 | I51: 150331347.1 | J51: 150.3313471 | K51: 0.1503313471
B52: 0.512469 | C52: 0.512653 | D52: 0.1873 | E52: 1.000982381 | F52: 106000000000 | G52: 6.537735849e-12 | H52: 3.522626263e+11 | I52: 150216518.2 | J52: 150.2165182 | K52: 0.1502165182
B53: 0.511652 | C53: 0.511836 | D53: 0.1878 | E53: 1.000979766 | F53: 106000000000 | G53: 6.537735849e-12 | H53: 3.522626263e+11 | I53: 149816776.5 | J53: 149.8167765 | K53: 0.1498167765
B54: 0.51181 | C54: 0.51198 | D54: 0.1734 | E54: 1.000980392 | F54: 106000000000 | G54: 6.537735849e-12 | H54: 3.522626263e+11 | I54: 149912520.3 | J54: 149.9125203 | K54: 0.1499125203
A57: Lutetium
A58: Hafnium | B58: Initial | C58: Today | D58: Today | E58: The Ratio | F58: Half | G58: Decay | H58: 2.303/Delta | I58: Age | J58: Age | K58: Age
A59: Dating | B59: 176Hf/177Hf | C59: 176Hf/177Hf | D59: 176Lu/177Hf | E59: Plus One | F59: Life | G59: Constant | H59: Constant | I59: Years | J59: Million Years | K59: Billion Years
B60: 0.283333 | C60: 0.283461 | D60: 0.0458 | E60: =1+((C60-B60)/D60) -> 1.00279476 | F60: 37300000000 | G60: =(0.693/F60) -> 1.857908847e-11 | H60: =(2.303/G60) -> 1.239565657e+11 | I60: =(LOG(E60))*(H60) -> 150242281.3 | J60: =(I60/1000000) -> 150.2422813 | K60: =(J60/1000) -> 0.1502422813
B61: 0.281954 | C61: 0.283038 | D61: 0.0301 | E61: =1+((C61-B61)/D61) -> 1.036013289 | F61: 37300000000 | G61: 1.857908847e-11 | H61: =(2.303/G61) -> 1.239565657e+11 | I61: =(LOG(E61))*(H61) -> 1904633063 | J61: =(I61/1000000) -> 1904.633063 | K61: =(J61/1000) -> 1.904633063
B62: 0.283603 | C62: 0.283729 | D62: 0.0451 | E62: =1+((C62-B62)/D62) -> 1.002793792 | F62: 37300000000 | G62: =(0.693/F62) -> 1.857908847e-11 | H62: =(2.303/G62) -> 1.239565657e+11 | I62: =(LOG(E62))*(H62) -> 150190302 | J62: =(I62/1000000) -> 150.190302 | K62: =(J62/1000) -> 0.150190302
B63: 0.283233 | C63: 0.283377 | D63: 0.0512 | E63: 1.0028125 | F63: 37300000000 | G63: 1.857908847e-11 | H63: 1.239565657e+11 | I63: 151194629.6 | J63: 151.1946296 | K63: 0.1511946296
B64: 0.283137 | C64: 0.283231 | D64: 0.0336 | E64: 1.002797619 | F64: 37300000000 | G64: 1.857908847e-11 | H64: 1.239565657e+11 | I64: 150395774.4 | J64: 150.3957744 | K64: 0.1503957744
B65: 0.283705 | C65: 0.283834 | D65: 0.0462 | E65: 1.002792208 | F65: 37300000000 | G65: 1.857908847e-11 | H65: 1.239565657e+11 | I65: 150105278.7 | J65: 150.1052787 | K65: 0.1501052787
B66: 0.282967 | C66: 0.283061 | D66: 0.0336 | E66: 1.002797619 | F66: 37300000000 | G66: 1.857908847e-11 | H66: 1.239565657e+11 | I66: 150395774.4 | J66: 150.3957744 | K66: 0.1503957744
B67: 0.282213 | C67: 0.282262 | D67: 0.0176 | E67: 1.002784091 | F67: 37300000000 | G67: 1.857908847e-11 | H67: 1.239565657e+11 | I67: 149669532.2 | J67: 149.6695322 | K67: 0.1496695322
B68: 0.282377 | C68: 0.282418 | D68: 0.0145 | E68: 1.002827586 | F68: 37300000000 | G68: 1.857908847e-11 | H68: 1.239565657e+11 | I68: 152004491.4 | J68: 152.0044914 | K68: 0.1520044914
A77: Million Years | B77: Million Years
A78: -3209 | B78: 965
A79: -1747 | B79: 2803
A80: 136 | B80: 4383
A81: 530 | B81: 7935
A82: 600

Sheet Negative_19
A1: Table 2 | B1: Re/Os
A2: Sample Number | B2: Billion Years | C2: Billion Years | E2: Billion Years | F2: Billion Years
A3: HK1-13H | B3: 0.74 | C3: -1.24 | E3: -1.24 | F3: 6
A4: HK1-13W | B4: 0.91 | C4: -1.24 | E4: -1.24 | F4: 7.46
A5: HK1-19 | B5: 1.14 | C5: -0.22 | E5: -0.22 | F5: 47.37
A6: HK1-21 | B6: 1.56 | C6: 0.83 | E6: 4.54 | F6: 49.63
A7: HK1-24 | B7: 1.57 | C7: 2
A8: HK1-25/2 | B8: 1.9 | C8: 2.28
A9: HK1-26 | B9: 2.3 | C9: 2.67
A10: HK4-1 | B10: 2.42 | C10: 2.87
A11: HK-3aa | B11: 2.45 | C11: 2.93
A12: 13-16-3 | B12: 2.53 | C12: 3.03
A13: 13-19-2 | B13: 2.61 | C13: 3.47
A14: 13-19-6 | B14: 2.62 | C14: 4.54
A15: 13-19-11 | B15: 2.65 | C15: 6
A16: 13-19-15 | B16: 2.77 | C16: 7.46
A17: 13-19-22 | C17: 47.37
A18: 13-19-27 | C18: 49.63
A19: Average | B19: =AVERAGE(B2:B18) -> 2.012142857 | C19: =AVERAGE(C2:C18) -> 8.27375
A20: Maximim | B20: =MAX(B2:B19) -> 2.77 | C20: =MAX(C2:C19) -> 49.63
A21: Minimum | B21: =MIN(B2:B20) -> 0.74 | C21: =MIN(C2:C20) -> -1.24
A23: Table 4 | B23: Sm/Nd | C23: Lu/Hf
A24: Sample Number | B24: Billion Years | C24: Billion Years | E24: Billion Years | F24: Billion Years
A25: HK1-13H | B25: -2.34 | C25: -4.24 | E25: -2.34 | F25: -4.24
A26: HK1-13W | B26: -1.75 | C26: -1.47 | E26: -1.75 | F26: -1.47
A27: HK1-19 | B27: -0.98 | C27: -1.14 | E27: -0.98 | F27: -1.14
A28: HK1-19 | B28: -0.86 | C28: -0.84 | E28: -0.86 | F28: -0.84
A29: HK1-24 | B29: -0.51 | C29: -0.42 | E29: 4.47 | F29: 2.51
A30: HK1-24 | B30: -0.23 | C30: -0.11
A31: HK1-24 | B31: -0.18 | C31: 0.04
A32: HK1-25 | B32: 0.14 | C32: 0.3
A33: HK1-25 | B33: 0.2 | C33: 0.34
A34: HK1-25 | B34: 0.65 | C34: 0.58
A35: HK1-26 | B35: 0.7 | C35: 0.59
A36: HK1-26 | B36: 0.77 | C36: 0.63
A37: HK4-1 | B37: 0.79 | C37: 0.63
A38: HK4-1 | B38: 0.89 | C38: 0.64
A39: HK4-1 | B39: 0.92 | C39: 0.87
A40: H00-10-22 | B40: 0.93 | C40: 0.94
A41: H00-10-22 | B41: 0.99 | C41: 0.95
A42: HK-3a | B42: 1.02 | C42: 1.03
A43: 13-16-3 | B43: 1.13 | C43: 1.03
A44: 13-16-3 | B44: 1.14 | C44: 1.15
A45: 13-19-2 | B45: 1.23 | C45: 1.26
A46: 13-19-6 | B46: 1.28 | C46: 1.3
A47: 13-19-11 | B47: 1.28 | C47: 1.31
A48: 13-19-15 | B48: 1.29 | C48: 1.32
A49: 13-19-20 | B49: 1.37 | C49: 1.39
A50: 13-19-22 | B50: 1.38 | C50: 1.4
A51: 13-19-27 | B51: 1.43 | C51: 1.5
A52: 13-19-27 | B52: 1.51 | C52: 1.78
A53: 13-19-27 | B53: 1.52 | C53: 1.9
A54: 13-19Ka | B54: 1.65 | C54: 2.22
A55: H68-16b | B55: 1.68 | C55: 2.51
A56: H68-16B | B56: 1.76
A57: H69-15F | B57: 1.82
A58: H69-15F | B58: 4.47
A59: H81-21
A60: H81-21
A61: WP
A62: W4-002a
A63: Average | B63: =AVERAGE(B25:B62) -> 0.7967647059 | C63: =AVERAGE(C25:C62) -> 0.625483871
A64: Maximim | B64: =MAX(B25:B63) -> 4.47 | C64: =MAX(C25:C63) -> 2.51
A65: Minimum | B65: =MIN(B25:B64) -> -2.34 | C65: =MIN(C25:C64) -> -4.24
A70: Table 3 | B70: 206Pb/204Pb | C70: 207Pb/204Pb | D70: 207Pb/206Pb | E70: Age | G70: Age | H70: Age
A71: HK1-13H | B71: 18.137 | C71: 15.522 | D71: =(C71/B71) -> 0.8558195953 | E71: =[1]!AgePb76(D71) -> 5017.594161 | G71: 5118.164981 | H71: 4985.889685
A72: HK1-13W | B72: 18.024 | C72: 15.504 | D72: =(C72/B72) -> 0.8601864181 | E72: =[1]!AgePb76(D72) -> 5024.811063 | G72: 5103.284514 | H72: 4949.090508
A73: HK1-19 | B73: 19.146 | C73: 15.614 | D73: 0.8155228246 | E73: =[1]!AgePb76(D73) -> 4949.090508 | G73: 5047.294616 | H73: 4925.073953
A74: HK1-19 | B74: 29.06 | C74: 16.43 | D74: 0.5653819683 | E74: =[1]!AgePb76(D74) -> 4421.457044 | G74: 5028.512612 | H74: 4915.825451
A75: HK1-21 | B75: 18.086 | C75: 15.53 | D75: 0.8586752184 | E75: =[1]!AgePb76(D75) -> 5022.317964 | G75: 5024.811063 | H75: 4881.359715
A76: HK1-24 | B76: 18.214 | C76: 15.918 | D76: 0.8739431207 | E76: =[1]!AgePb76(D76) -> 5047.294616 | G76: 5022.317964 | H76: 4878.634709
A77: HK1-24 | B77: 19.137 | C77: 16.016 | D77: 0.8369127867 | E77: =[1]!AgePb76(D77) -> 4985.889685 | G77: 5022.298258 | H77: 4857.13533
A78: HK1-25 | B78: 17.977 | C78: 15.504 | D78: 0.862435334 | E78: =[1]!AgePb76(D78) -> 5028.512612 | G78: 5017.594161 | H78: 4839.878682
A79: HK1-26 | B79: 19.62 | C79: 15.631 | D79: 0.796687054 | E79: =[1]!AgePb76(D79) -> 4915.825451 | G79: 5001.22088 | H79: 4721.454035
A80: HK4-1 | B80: 18.435 | C80: 15.596 | D80: 0.8459994576 | E80: =[1]!AgePb76(D80) -> 5001.22088 | G80: 4985.889685
A81: HK-3a | B81: 18.134 | C81: 15.571 | D81: 0.8586632844 | E81: =[1]!AgePb76(D81) -> 5022.298258 | G81: 4949.090508
A82: 13-19-2 | B82: 20.563 | C82: 15.991 | D82: 0.7776589019 | E82: =[1]!AgePb76(D82) -> 4881.359715 | G82: 4925.073953
A83: 13-19-6 | B83: 16.91 | C83: 15.375 | D83: 0.9092253105 | E83: =[1]!AgePb76(D83) -> 5103.284514 | G83: 4915.825451
A84: 13-19-11 | B84: 20.936 | C84: 15.815 | D84: 0.7553974016 | E84: =[1]!AgePb76(D84) -> 4839.878682 | G84: 4881.359715
A85: 13-19-15 | B85: 20.315 | C85: 15.768 | D85: 0.77617524 | E85: =[1]!AgePb76(D85) -> 4878.634709 | G85: 4878.634709
A86: 13-19-20 | B86: 19.18 | C86: 15.38 | D86: 0.8018769552 | E86: =[1]!AgePb76(D86) -> 4925.073953 | G86: 4857.13533
A87: 13-19-22 | B87: 20.652 | C87: 15.79 | D87: 0.7645748596 | E87: =[1]!AgePb76(D87) -> 4857.13533 | G87: 4839.878682
A88: 13-19-27 | B88: 16.686 | C88: 15.332 | D88: 0.9188541292 | E88: =[1]!AgePb76(D88) -> 5118.164981 | G88: 4721.454035
A89: 13-19Ka | B89: 22.923 | C89: 15.943 | D89: 0.6955023339 | E89: =[1]!AgePb76(D89) -> 4721.454035
D90: Average | E90: =AVERAGE(E71:E89) -> 4934.805166 | G90: =COUNT(G71:G89) -> 18
D91: Maximum | E91: =MAX(E71:E90) -> 5118.164981
D92: Minimum | E92: =MIN(E71:E91) -> 4421.457044

Sheet Negative_20
D3: Sm-Nd | E3: Rb-Sr | F3: Ratio
D4: 258 | E4: 5454 | F4: =(E4/D4) -> 21.13953488
D5: 959 | E5: 6245 | F5: =(E5/D5) -> 6.511991658
D6: 434 | E6: 12716 | F6: 29.29953917
D7: 2038 | E7: 1351 | F7: 0.6629048086
D8: 1157 | E8: 4026 | F8: 3.47968885
D10: Billion Years
D11: 11000
D12: 6900
D13: 6600
D14: 5500
D15: 17 Negative Ages
A18: Osmium
A19: Osmium | B19: Today | C19: The | D19: Age | E19: Age | F19: Age
A20: Dating | B20: 187Os/186Os | C20: Ratio | D20: Years | E20: Million Years | F20: Billion Years | J20: Million Years | K20: Million Years
B21: 0.927 | C21: =(1.04-B21)/0.050768 -> 2.225811535 | D21: =(C21 * 1000000) -> 2225811.535 | E21: =(D21 / 1000000) -> 2.225811535 | F21: =(E21/1000) -> 0.002225811535 | J21: -1584 | K21: -6.460762685
B22: 0.952 | C22: =(1.04-B22)/0.050768 -> 1.733375355 | D22: =(C22 * 1000000) -> 1733375.355 | E22: =(D22 / 1000000) -> 1.733375355 | F22: =(E22/1000) -> 0.001733375355 | J22: -1504.097069 | K22: -1.575795777
B23: 1.014 | C23: 0.5121336275 | D23: 512133.6275 | E23: 0.5121336275 | F23: 0.0005121336275 | J23: -477.8600693 | K23: -0.7288055468
B24: 1.027 | C24: 0.2560668137 | D24: 256066.8137 | E24: 0.2560668137 | F24: 0.0002560668137 | J24: -34.90387646 | K24: 2.225811535
B25: 1.03 | C25: 0.1969744721 | D25: 196974.4721 | E25: 0.1969744721 | F25: 0.0001969744721 | J25: -19.10652379 | K25: 2.777340057
B26: 0.973 | C26: 1.319728963 | D26: 1319728.963 | E26: 1.319728963 | F26: 0.001319728963
B27: 0.899 | C27: 2.777340057 | D27: 2777340.057 | E27: 2.777340057 | F27: 0.002777340057
B28: 0.93 | C28: 2.166719193 | D28: 2166719.193 | E28: 2.166719193 | F28: 0.002166719193
B29: 0.899 | C29: 2.777340057 | D29: 2777340.057 | E29: 2.777340057 | F29: 0.002777340057
B30: 1.006 | C30: 0.6697132052 | D30: 669713.2052 | E30: 0.6697132052 | F30: 0.0006697132052
B31: 0.997 | C31: 0.8469902301 | D31: 846990.2301 | E31: 0.8469902301 | F31: 0.0008469902301
B32: 0.918 | C32: 2.40308856 | D32: 2403088.56 | E32: 2.40308856 | F32: 0.00240308856
B33: 0.975 | C33: 1.280334069 | D33: 1280334.069 | E33: 1.280334069 | F33: 0.001280334069
B34: 1.015 | C34: 0.4924361803 | D34: 492436.1803 | E34: 0.4924361803 | F34: 0.0004924361803
B35: 1.024 | C35: 0.3151591554 | D35: 315159.1554 | E35: 0.3151591554 | F35: 0.0003151591554
B36: 2.01 | C36: -19.10652379 | D36: -19106523.79 | E36: -19.10652379 | F36: -0.01910652379
B37: 1.368 | C37: -6.460762685 | D37: -6460762.685 | E37: -6.460762685 | F37: -0.006460762685
B38: 2.812 | C38: -34.90387646 | D38: -34903876.46 | E38: -34.90387646 | F38: -0.03490387646
B39: 0.995 | C39: 0.8863851245 | D39: 886385.1245 | E39: 0.8863851245 | F39: 0.0008863851245
B40: 1.077 | C40: -0.7288055468 | D40: -728805.5468 | E40: -0.7288055468 | F40: -0.0007288055468
B41: 1.027 | C41: 0.2560668137 | D41: 256066.8137 | E41: 0.2560668137 | F41: 0.0002560668137
B42: 81.5 | C42: -1584.856603 | D42: -1584856603 | E42: -1584.856603 | F42: -1.584856603
B43: 25.3 | C43: -477.8600693 | D43: -477860069.3 | E43: -477.8600693 | F43: -0.4778600693
B44: 1.12 | C44: -1.575795777 | D44: -1575795.777 | E44: -1.575795777 | F44: -0.001575795777
B45: 77.4 | C45: -1504.097069 | D45: -1504097069 | E45: -1504.097069 | F45: -1.504097069
B48: Re/Os | C48: Sm/Nd | D48: Rb/Sr
B49: 5.5 | C49: 3.2 | D49: 8.3
B50: 11 | C50: 3 | D50: 0.99
B51: 6.9 | C51: 3
B52: 6.6 | C52: 2.7
B53: 6 Negative | C53: 4 Negative | D53: 7 Negative

Sheet Negative_28
A2: Rubidium
A3: Strontium | B3: Initial | C3: Today | D3: Today | E3: The Ratio | F3: Half | G3: Decay | H3: 2.303/Delta | I3: Age | J3: Age | K3: Age
A4: Dating | B4: 87Sr/86Sr | C4: 87Sr/86Sr | D4: 87Rb/86Sr | E4: Plus One | F4: Life | G4: Constant | H4: Constant | I4: Years | J4: Million Years | K4: Billion Years
B5: 0.704981 | C5: 0.705141 | D5: 0.0799 | E5: =1+((C5-B5)/D5) -> 1.002002503 | F5: 48800000000 | G5: =(0.693/F5) -> 1.420081967e-11 | H5: =(2.303/G5) -> 1.621737374e+11 | I5: =(LOG(E5))*(H5) -> 140897589.9 | J5: =(I5/1000000) -> 140.8975899 | K5: =(J5/1000) -> 0.1408975899
B6: 0.704811 | C6: 0.705045 | D6: 0.1167 | E6: =1+((C6-B6)/D6) -> 1.002005141 | F6: 48800000000 | G6: =(0.693/F6) -> 1.420081967e-11 | H6: =(2.303/G6) -> 1.621737374e+11 | I6: =(LOG(E6))*(H6) -> 141083033.9 | J6: =(I6/1000000) -> 141.0830339 | K6: =(J6/1000) -> 0.1410830339
B7: 0.704797 | C7: 0.705049 | D7: 0.1256 | E7: 1.002006369 | F7: 48800000000 | G7: 1.420081967e-11 | H7: 1.621737374e+11 | I7: 141169353 | J7: 141.169353 | K7: 0.141169353
B8: 0.704822 | C8: 0.705055 | D8: 0.1163 | E8: 1.002003439 | F8: 48800000000 | G8: 1.420081967e-11 | H8: 1.621737374e+11 | I8: 140963399.4 | J8: 140.9633994 | K8: 0.1409633994
B9: 0.714283 | C9: 0.715043 | D9: 0.1147 | E9: 1.006625981 | F9: 48800000000 | G9: 1.420081967e-11 | H9: 1.621737374e+11 | I9: 465136214.6 | J9: 465.1362146 | K9: 0.4651362146
B10: 0.719625 | C10: 0.719958 | D10: 0.0503 | E10: 1.006620278 | F10: 48800000000 | G10: 1.420081967e-11 | H10: 1.621737374e+11 | I10: 464737224.2 | J10: 464.7372242 | K10: 0.4647372242
B11: 0.713688 | C11: 0.713809 | D11: 0.0183 | E11: 1.006612022 | F11: 48800000000 | G11: 1.420081967e-11 | H11: 1.621737374e+11 | I11: 464159533.4 | J11: 464.1595334 | K11: 0.4641595334
B12: 0.713602 | C12: 0.713983 | D12: 0.0575 | E12: 1.006626087 | F12: 48800000000 | G12: 1.420081967e-11 | H12: 1.621737374e+11 | I12: 465143640.8 | J12: 465.1436408 | K12: 0.4651436408
B13: 0.712728 | C13: 0.712739 | D13: 0.0017 | E13: 1.006470588 | F13: 48800000000 | G13: 1.420081967e-11 | H13: 1.621737374e+11 | I13: 454262936.1 | J13: 454.2629361 | K13: 0.4542629361
B14: 0.712503 | C14: 0.712576 | D14: 0.011 | E14: 1.006636364 | F14: 48800000000 | G14: 1.420081967e-11 | H14: 1.621737374e+11 | I14: 465862671.2 | J14: 465.8626712 | K14: 0.4658626712
B15: 0.708667 | C15: 0.710423 | D15: 0.265 | E15: 1.006626415 | F15: 48800000000 | G15: 1.420081967e-11 | H15: 1.621737374e+11 | I15: 465166599.8 | J15: 465.1665998 | K15: 0.4651665998
B16: 0.707542 | C16: 0.710389 | D16: 0.4297 | E16: 1.006625553 | F16: 48800000000 | G16: 1.420081967e-11 | H16: 1.621737374e+11 | I16: 465106260.9 | J16: 465.1062609 | K16: 0.4651062609
B17: 0.707465 | C17: 0.708805 | D17: 0.2023 | E17: 1.006623826 | F17: 48800000000 | G17: 1.420081967e-11 | H17: 1.621737374e+11 | I17: 464985447.1 | J17: 464.9854471 | K17: 0.4649854471
B18: 0.706016 | C18: 0.708666 | D18: 0.0861 | E18: 1.030778165 | F18: 48800000000 | G18: 1.420081967e-11 | H18: 1.621737374e+11 | I18: 2135051353 | J18: 2135.051353 | K18: 2.135051353
B19: 0.703096 | C19: 0.707481 | D19: 0.2211 | E19: 1.019832655 | F19: 48800000000 | G19: 1.420081967e-11 | H19: 1.621737374e+11 | I19: 1383165844 | J19: 1383.165844 | K19: 1.383165844
B20: 0.704737 | C20: 0.706358 | D20: 0.2447 | E20: 1.006624438 | F20: 48800000000 | G20: 1.420081967e-11 | H20: 1.621737374e+11 | I20: 465028273.4 | J20: 465.0282734 | K20: 0.4650282734
B21: 0.709759 | C21: 0.710037 | D21: 0.163 | E21: 1.001705521 | F21: 48800000000 | G21: 1.420081967e-11 | H21: 1.621737374e+11 | I21: 120019535.5 | J21: 120.0195355 | K21: 0.1200195355
B22: 0.710056 | C22: 0.710115 | D22: 0.0346 | E22: 1.001705202 | F22: 48800000000 | G22: 1.420081967e-11 | H22: 1.621737374e+11 | I22: 119997095 | J22: 119.997095 | K22: 0.119997095
B23: 0.709793 | C23: 0.709802 | D23: 0.005 | E23: 1.0018 | F23: 48800000000 | G23: 1.420081967e-11 | H23: 1.621737374e+11 | I23: 126662124.9 | J23: 126.6621249 | K23: 0.1266621249
A33: Neodymium | B33: Initial | C33: Today | D33: Today | E33: The Ratio | F33: Half | G33: Decay | H33: 2.303/Delta | I33: Age | J33: Age | K33: Age
A34: Samarium | B34: 143Nd/144Nd | C34: 143Nd/144Nd | D34: 147Sm/144Nd | E34: Plus One | F34: Life | G34: Constant | H34: Constant | I34: Years | J34: Million Years | K34: Billion Years
B35: 0.513147 | C35: 0.513341 | D35: 0.21 | E35: =1+((C35-B35)/D35) -> 1.00092381 | F35: 106000000000 | G35: =(0.693/F35) -> 6.537735849e-12 | H35: =(2.303/G35) -> 3.522626263e+11 | I35: =(LOG(E35))*(H35) -> 141264419.6 | J35: =(I35/1000000) -> 141.2644196 | K35: =(J35/1000) -> 0.1412644196
B36: 0.513047 | C36: 0.513188 | D36: 0.1529 | E36: =1+((C36-B36)/D36) -> 1.000922171 | F36: 106000000000 | G36: =(0.693/F36) -> 6.537735849e-12 | H36: =(2.303/G36) -> 3.522626263e+11 | I36: =(LOG(E36))*(H36) -> 141014034.1 | J36: =(I36/1000000) -> 141.0140341 | K36: =(J36/1000) -> 0.1410140341
B37: 0.513117 | C37: 0.513319 | D37: 0.219 | E37: 1.000922374 | F37: 106000000000 | G37: 6.537735849e-12 | H37: 3.522626263e+11 | I37: 141045073.1 | J37: 141.0450731 | K37: 0.1410450731
B38: 0.51302 | C38: 0.513206 | D38: 0.2015 | E38: 1.000923077 | F38: 106000000000 | G38: 6.537735849e-12 | H38: 3.522626263e+11 | I38: 141152445.6 | J38: 141.1524456 | K38: 0.1411524456
B39: 0.511953 | C39: 0.51209 | D39: 0.045 | E39: 1.003044444 | F39: 106000000000 | G39: 6.537735849e-12 | H39: 3.522626263e+11 | I39: 465048960.2 | J39: 465.0489602 | K39: 0.4650489602
B40: 0.511828 | C40: 0.512155 | D40: 0.1073 | E40: 1.00304753 | F40: 106000000000 | G40: 6.537735849e-12 | H40: 3.522626263e+11 | I40: 465519616.7 | J40: 465.5196167 | K40: 0.4655196167
B41: 0.511822 | C41: 0.512138 | D41: 0.1037 | E41: 1.003047252 | F41: 106000000000 | G41: 6.537735849e-12 | H41: 3.522626263e+11 | I41: 465477124.2 | J41: 465.4771242 | K41: 0.4654771242
B42: 0.511851 | C42: 0.512155 | D42: 0.0999 | E42: 1.003043043 | F42: 106000000000 | G42: 6.537735849e-12 | H42: 3.522626263e+11 | I42: 464835216.4 | J42: 464.8352164 | K42: 0.4648352164
B43: 0.511852 | C43: 0.512148 | D43: 0.0973 | E43: 1.003042138 | F43: 106000000000 | G43: 6.537735849e-12 | H43: 3.522626263e+11 | I43: 464697134.8 | J43: 464.6971348 | K43: 0.4646971348
B44: 0.511853 | C44: 0.512097 | D44: 0.0802 | E44: 1.003042394 | F44: 106000000000 | G44: 6.537735849e-12 | H44: 3.522626263e+11 | I44: 464736225.6 | J44: 464.7362256 | K44: 0.4647362256
B45: 0.512051 | C45: 0.512503 | D45: 0.1485 | E45: 1.003043771 | F45: 106000000000 | G45: 6.537735849e-12 | H45: 3.522626263e+11 | I45: 464946252.2 | J45: 464.9462522 | K45: 0.4649462522
B46: 0.512006 | C46: 0.512297 | D46: 0.0954 | E46: 1.003050314 | F46: 106000000000 | G46: 6.537735849e-12 | H46: 3.522626263e+11 | I46: 465944261.2 | J46: 465.9442612 | K46: 0.4659442612
B47: 0.512067 | C47: 0.512393 | D47: 0.1069 | E47: 1.003049579 | F47: 106000000000 | G47: 6.537735849e-12 | H47: 3.522626263e+11 | I47: 465832094.6 | J47: 465.8320946 | K47: 0.4658320946
B48: 0.512018 | C48: 0.512264 | D48: 0.0769 | E48: 1.00319896 | F48: 106000000000 | G48: 6.537735849e-12 | H48: 3.522626263e+11 | I48: 488614022.1 | J48: 488.6140221 | K48: 0.4886140221
B49: 0.51203 | C49: 0.512289 | D49: 0.0889 | E49: 1.002913386 | F49: 106000000000 | G49: 6.537735849e-12 | H49: 3.522626263e+11 | I49: 445058414 | J49: 445.058414 | K49: 0.445058414
B50: 0.51074 | C50: 0.511637 | D50: 0.2944 | E50: 1.003046875 | F50: 106000000000 | G50: 6.537735849e-12 | H50: 3.522626263e+11 | I50: 465419671.4 | J50: 465.4196714 | K50: 0.4654196714
B51: 0.511871 | C51: 0.51199 | D51: 0.1518 | E51: 1.000783926 | F51: 106000000000 | G51: 6.537735849e-12 | H51: 3.522626263e+11 | I51: 119882529.5 | J51: 119.8825295 | K51: 0.1198825295
B52: 0.511871 | C52: 0.511978 | D52: 0.1367 | E52: 1.000782736 | F52: 106000000000 | G52: 6.537735849e-12 | H52: 3.522626263e+11 | I52: 119700573 | J52: 119.700573 | K52: 0.119700573
B53: 0.511849 | C53: 0.511949 | D53: 0.1279 | E53: 1.000781861 | F53: 106000000000 | G53: 6.537735849e-12 | H53: 3.522626263e+11 | I53: 119566801.5 | J53: 119.5668015 | K53: 0.1195668015
A58: Rhenium
A59: Osmium | B59: Initial | C59: Today | D59: Today | E59: The Ratio | F59: Half | G59: Decay | H59: 2.303/Delta | I59: Age | J59: Age | K59: Age
A60: Dating | B60: 187Os/188Os | C60: 187Os/188Os | D60: 187Re/188Os | E60: Plus One | F60: Life | G60: Constant | H60: Constant | I60: Years | J60: Million Years | K60: Billion Years
A61: DHS | B61: 0.12205 | C61: 0.12404 | D61: 0.3641 | E61: =1+((C61-B61)/D61) -> 1.005465531 | F61: 41600000000 | G61: =(0.693/F61) -> 1.665865385e-11 | H61: =(2.303/G61) -> 1.382464646e+11 | I61: =(LOG(E61))*(H61) -> 327255241.8 | J61: =(I61/1000000) -> 327.2552418 | K61: =(J61/1000) -> 0.3272552418
A62: NY-G1 | B62: 0.12476 | C62: 0.12553 | D62: 0.328 | E62: =1+((C62-B62)/D62) -> 1.002347561 | F62: 41600000000 | G62: 1.665865385e-11 | H62: =(2.303/G62) -> 1.382464646e+11 | I62: =(LOG(E62))*(H62) -> 140781620 | J62: =(I62/1000000) -> 140.78162 | K62: =(J62/1000) -> 0.14078162
A63: NY-G2 | B63: 0.12238 | C63: 0.12519 | D63: 1.1991 | E63: 1.002343424 | F63: 41600000000 | G63: =(0.693/F63) -> 1.665865385e-11 | H63: 1.382464646e+11 | I63: 140533832.6 | J63: 140.5338326 | K63: 0.1405338326
A64: NY-G3 | B64: 0.12242 | C64: 0.12311 | D64: 0.2928 | E64: 1.002356557 | F64: 41600000000 | G64: 1.665865385e-11 | H64: 1.382464646e+11 | I64: 141320493.5 | J64: 141.3204935 | K64: 0.1413204935
A65: NY-G4 | B65: 0.1229 | C65: 0.12367 | D65: 0.3295 | E65: 1.002336874 | F65: 41600000000 | G65: 1.665865385e-11 | H65: 1.382464646e+11 | I65: 140141479.8 | J65: 140.1414798 | K65: 0.1401414798
A66: L50-2003 | B66: 0.11445 | C66: 0.11582 | D66: 0.1756 | E66: 1.007801822 | F66: 41600000000 | G66: 1.665865385e-11 | H66: 1.382464646e+11 | I66: 466601078.5 | J66: 466.6010785 | K66: 0.4666010785
A67: LN-9830 | B67: 0.10716 | C67: 0.10878 | D67: 0.2077 | E67: 1.007799711 | F67: 41600000000 | G67: 1.665865385e-11 | H67: 1.382464646e+11 | I67: 466475303.8 | J67: 466.4753038 | K67: 0.4664753038
A68: F50-9254 | B68: 0.10683 | C68: 0.10717 | D68: 0.0437 | E68: 1.00778032 | F68: 41600000000 | G68: 1.665865385e-11 | H68: 1.382464646e+11 | I68: 465320088.2 | J68: 465.3200882 | K68: 0.4653200882
A69: F50-9270 | B69: 0.10984 | C69: 0.11015 | D69: 0.0389 | E69: 1.007969152 | F69: 41600000000 | G69: 1.665865385e-11 | H69: 1.382464646e+11 | I69: 476568877.5 | J69: 476.5688775 | K69: 0.4765688775
A70: F50-9270* | B70: 0.10963 | C70: 0.11011 | D70: 0.062 | E70: 1.007741935 | F70: 41600000000 | G70: 1.665865385e-11 | H70: 1.382464646e+11 | I70: 463033221 | J70: 463.033221 | K70: 0.463033221
A71: F50-9271* | B71: 0.10864 | C71: 0.10919 | D71: 0.0705 | E71: 1.007801418 | F71: 41600000000 | G71: 1.665865385e-11 | H71: 1.382464646e+11 | I71: 466577017.2 | J71: 466.5770172 | K71: 0.4665770172
A72: F50-9274 | B72: 0.10608 | C72: 0.10629 | D72: 0.0265 | E72: 1.007924528 | F72: 41600000000 | G72: 1.665865385e-11 | H72: 1.382464646e+11 | I72: 473910827.9 | J72: 473.9108279 | K72: 0.4739108279
A73: F50-9281 | B73: 0.10783 | C73: 0.10793 | D73: 0.0129 | E73: 1.007751938 | F73: 41600000000 | G73: 1.665865385e-11 | H73: 1.382464646e+11 | I73: 463629151.2 | J73: 463.6291512 | K73: 0.4636291512
A74: L42-13 | B74: 0.11283 | C74: 0.13878 | D74: 3.3356 | E74: 1.00777971 | F74: 41600000000 | G74: 1.665865385e-11 | H74: 1.382464646e+11 | I74: 465283712.9 | J74: 465.2837129 | K74: 0.4652837129
A75: F50-01 | B75: 0.10869 | C75: 0.11955 | D75: 1.3969 | E75: 1.007774358 | F75: 41600000000 | G75: 1.665865385e-11 | H75: 1.382464646e+11 | I75: 464964842.9 | J75: 464.9648429 | K75: 0.4649648429
A76: SD-9804 | B76: 0.11064 | C76: 0.11138 | D76: 0.0939 | E76: 1.007880724 | F76: 41600000000 | G76: 1.665865385e-11 | H76: 1.382464646e+11 | I76: 471301463.1 | J76: 471.3014631 | K76: 0.4713014631
A77: SD-9405* | B77: 0.11843 | C77: 0.12216 | D77: 0.48 | E77: 1.007770833 | F77: 41600000000 | G77: 1.665865385e-11 | H77: 1.382464646e+11 | I77: 464754884.6 | J77: 464.7548846 | K77: 0.4647548846
A78: SL-2001 | B78: 0.1098 | C78: 0.11041 | D78: 0.0785 | E78: 1.007770701 | F78: 41600000000 | G78: 1.665865385e-11 | H78: 1.382464646e+11 | I78: 464746979 | J78: 464.746979 | K78: 0.464746979
A79: Sv1b-12 | B79: 0.11353 | C79: 0.11462 | D79: 0.1395 | E79: 1.00781362 | F79: 41600000000 | G79: 1.665865385e-11 | H79: 1.382464646e+11 | I79: 467303923.9 | J79: 467.3039239 | K79: 0.4673039239
A80: Sv1b-11 | B80: 0.11057 | C80: 0.11143 | D80: 0.1097 | E80: 1.007839562 | F80: 41600000000 | G80: 1.665865385e-11 | H80: 1.382464646e+11 | I80: 468849399.7 | J80: 468.8493997 | K80: 0.4688493997
A81: Sv1b-16 | B81: 0.15421 | C81: 0.17268 | D81: 2.3745 | E81: 1.00777848 | F81: 41600000000 | G81: 1.665865385e-11 | H81: 1.382464646e+11 | I81: 465210427.1 | J81: 465.2104271 | K81: 0.4652104271
A82: FC6-1-2 | B82: 0.132 | C82: 0.14678 | D82: 3.5402 | E82: 1.004174905 | F82: 41600000000 | G82: 1.665865385e-11 | H82: 1.382464646e+11 | I82: 250138179.9 | J82: 250.1381799 | K82: 0.2501381799
A83: FC6-2-2 | B83: 0.11959 | C83: 0.12162 | D83: 0.4865 | E83: 1.004172662 | F83: 41600000000 | G83: 1.665865385e-11 | H83: 1.382464646e+11 | I83: 250004040.7 | J83: 250.0040407 | K83: 0.2500040407
A84: FC25-2 | B84: 0.15837 | C84: 0.15871 | D84: 0.0808 | E84: 1.004207921 | F84: 41600000000 | G84: 1.665865385e-11 | H84: 1.382464646e+11 | I84: 252112141.4 | J84: 252.1121414 | K84: 0.2521121414

Sheet Negative_30
B3: Billion Years | D3: Billion Years
B4: 2.98 | C4: 0.01 | D4: 3.02 | E4: 0.03
B5: 3.52 | C5: 0.09 | D5: 3.56 | E5: 0.18
B6: 2.32 | C6: 0.1 | D6: 2.89 | E6: 0.25
B7: 2.86 | C7: 0.01 | D7: 2.96 | E7: 0.02
B8: 2.3 | C8: 0.06 | D8: -7.12 | E8: 0.85
B9: 2.13 | C9: 0.06 | D9: 2.78 | E9: 0.17
B10: 2.54 | C10: 0.15 | D10: 2.62 | E10: 0.31
B11: -1.89 | C11: 0.66 | D11: -3.54 | E11: 2.98
B12: 3.03 | C12: 0.18 | D12: 3.35 | E12: 0.4
B13: -0.62 | C13: 0.29 | D13: -0.75 | E13: 0.7
B14: -0.94 | C14: 0.24 | D14: -1.1 | E14: 0.57
B15: 0.98 | C15: 0.21 | D15: 2.06 | E15: 0.87
B16: -0.62 | C16: 0.29 | D16: -0.75 | E16: 0.7
B17: -1.3 | C17: 0.1 | D17: -1.99 | E17: 0.32
B18: 1.83 | C18: 0.24 | D18: 7.69 | E18: 3.27
B19: 0.13 | C19: 0.16 | D19: 0.32 | E19: 0.8
B20: 1.21 | C20: 0.19 | D20: 3.28 | E20: 1.02
B21: 1.49 | C21: 0.13 | D21: 2.75 | E21: 0.49
B22: -0.03 | C22: 0 | D22: -0.04 | E22: 0
B23: 1.57 | C23: 0.08 | D23: 2.01 | E23: 0.22
B24: 0.97 | C24: 0.17 | D24: 2.39 | E24: 0.91
B25: 1.92 | C25: 0.35 | D25: 2.21 | E25: 0.87
B26: 0.05 | C26: 0.68 | D26: 0.12 | E26: 3.24
B27: -1.2 | C27: 0.1 | D27: 1.2 | E27: 0.48
B28: -0.92 | C28: 0.03 | D28: 3.91 | E28: 0.32
A29: Average | B29: =AVERAGE(B4:B28) -> 0.9724 | D29: =AVERAGE(D4:D28) -> 1.3532
A30: Maximim | B30: =MAX(B4:B29) -> 3.52 | D30: =MAX(D4:D29) -> 7.69
A31: Minimum | B31: =MIN(B4:B30) -> -1.89 | D31: =MIN(D4:D30) -> -7.12
